Workbook

Sheet Introduction
B3: Low Carbon Fuel Standard Tier 1 CI Calculator for Dairy and Swine Manure Biomethane (Release Date: 08/12/2024)
C4: The Tier 1 Calculator for Biomethane from Anaerobic Digestion of Dairy and Swine Manure offers a simplified interface for calculating the carbon intensity (CI) of biomethane produced from the anaerobic digestion of dairy and swine manure. To begin, please navigate to the "Manure-to-Biogas (LOP Inputs)", "Biogas-to-RNG", and "Avoided Emissions" worksheets and enter all relevant data. Inputs entered by the applicant are limited to all yellow cells (see Color Key below) and are subject to be validated and verified by a third-party verifier. Inputs that do not apply to the fuel pathway may be left blank. Cells containing calculated or predefined input values may not be modified without DEQ approval via a Tier 2 pathway. The carbon Intensity (CI) summary is provided in the "Pathway Summary" worksheet. A conservative margin of safety may be added to the calculated CI in this worksheet to establish the final CI. Pathway-specific Operating Conditions may be added by DEQ prior to pathway certification. Notes: 1. "Manure-to-Biogas (LOP Inputs)" worksheet • Annual lagoon cleanout is required for the baseline modeling (Fields L1.(1-6).15) for both Tier 1 and Tier 2 pathways. Please refer to the Instruction Manual of the calculator for more details. • Field L3.1 is not a user input, to adjust the operational data period, please update Field 2.3 in the "Biogas-to-RNG" worksheet. • Please select either "12" or "24” months for Field L1.1.2. If the number of baseline reporting month entered in Fields L1.(1-6).7 does not match the entry in Field L1.1.2, an "ERROR" message will appear in the total baseline methane emission from Anaerobic Storage/Treatment Systems (cells N33, AB33, AP33, BD33, BR33, and CF33). Once 24 months are selected for the baseline reporting period, the applicant must continue to model the 24-month baseline moving forward (including Annual Fuel Pathway Reports). Please refer to the Instruction Manual of the calculator for more details. • Calculated herd populations are not allowed to establish the initial VS carryover (Fields L1.(1-6).16). If herd populations used to establish the initial VS carryover are not verifiable, enter zero for the initial VS carryover. 2. "Biogas-to-RNG" worksheet • For Section 1, the "Company Name" represents the fuel pathway applicant ("Fuel Producer" in AFP), whereas the "Facility Name" represents the fuel production facility ("Facility" in the AFP). • A minimum of 3 months of project operational data is required in Section 2. The project reporting month populated in Field 2.3 must be entirely covered by the baseline reporting month populated in Fields L1.(1-6).7 in the "Manure-to-Biogas (LOP Inputs)" worksheet. If the number of project reporting months is fewer than the number of baseline reporting months, the project reporting month must align with the latest baseline reporting month. • If less than 24 months of project operational data is reported in the Annual Fuel Pathway Reports, the operational data period must include the reported months established during pathway initial certification. • Please enter the name of each joint applicant/intermediate facility included in this fuel pathway in Field 1.11. All joint applicants must also be registered in the AFP to align with the legal name of the facility or with US EPA facility registration. 3. This calculator contains macros. If using Microsoft Excel, users will have to select the "Enable Content" button upon opening this calculator and select "Automatic" calculations from the "Calculation Options" in the "Formulas" toolbar or press F9 to ensure that the calculator results are accurate.
D7: Color Key | F7: CFP Website Resources
D8: User Input | F8: CFP Program Overview
D9: Calculated Value | F9: Tier 1 Pathway Calculators and Instruction Manuals
D10: OR-GREET4.0 Input | F10: Tier 1 Pathway Application Process
D11: Pathway CI Results
D47: `

Sheet Pathway Summary
A1: SUMMARY AND OPERATING CONDITIONS OF DAIRY/SWINE MANURE TO CNG/LNG/L-CNG PATHWAY | E1: (FOR APPLICANT TO REVIEW ONLY - CONTAINS CONFIDENTIAL BUSINESS INFORMATION - DO NOT DISTRIBUTE)
A2: AXXXX/BXXXX | B2: Input Data | E2: Output Results, gCO2e/MJ | F2: Biogas
A3: Applicant | B3: =IF('Biogas-to-RNG'!C15="","",'Biogas-to-RNG'!C15) ->  | E3: CNG Carbon Intensity: | F3: =IF(F59=0,"N/A",F59) -> N/A
A4: Digester Location: | B4: =IF('Biogas-to-RNG'!C18="","",'Biogas-to-RNG'!C18) ->  | E4: Certification Date: | F4: TBD
A5: Pathway Description: | E5: FPC Code: | F5: TBD
E6: First Reporting Month for Certification | F6: =IF('Biogas-to-RNG'!B28<>"", 'Biogas-to-RNG'!B28, "") -> 
E7: Number of Project Reporting Month | F7: =IF('Biogas-to-RNG'!J24<>0, 'Biogas-to-RNG'!J24, "") -> 
A8: User Inputs Parameters | B8: Value | C8: Unit | D8: Note | E8: CI Breakdown (gCO2e/MJ)
A9: 1) Project Background Information
A10: Average total livestock population | B10: =IFERROR(AVERAGE('Manure-to-Biogas (LOP Inputs)'!D9:D32),0)+IFERROR(AVERAGE('Manure-to-Biogas (LOP Inputs)'!R9:R32),0)+IFERROR(AVERAGE('Manure-to-Biogas (LOP Inputs)'!AF9:AF32),0)+IFERROR(AVERAGE('Manure-to-Biogas (LOP Inputs)'!AT9:AT32),0)+IFERROR(AVERAGE('Manure-to-Biogas (LOP Inputs)'!BH9:BH32),0)+IFERROR(AVERAGE('Manure-to-Biogas (LOP Inputs)'!BV9:BV32),0) -> 0 | C10: head
A11: Average ambient temperature | B11: =IFERROR(SUMPRODUCT('Manure-to-Biogas (LOP Inputs)'!G9:G32,'Manure-to-Biogas (LOP Inputs)'!F9:F32)/SUM('Manure-to-Biogas (LOP Inputs)'!F9:F32),0) -> 0 | C11: °C
A12: Full lagoon cleanouts in baseline? | B12: =IF(COUNTIF('Manure-to-Biogas (LOP Inputs)'!L9:L32,">0")<COUNT('Manure-to-Biogas (LOP Inputs)'!L9:L32), "YES","NO") -> YES
A13: Digester type | B13: ='Avoided Emissions'!C4 -> Covered Lagoon
A14: Manure Biogas Production Electricity Mix | B14: ='Biogas-to-RNG'!D24 -> ORMX
A16: 2) Baseline Methane Production
A17: Diesel consumption | B17: ='Biogas-to-RNG'!I52 -> 0 | C17: Gallons
A18: Electricity consumption | B18: ='Biogas-to-RNG'!K52 -> 0 | C18: kWh
A19: Baseline CH4 emissions from anaerobic storage/treatment systems | B19: =IFERROR(('Manure-to-Biogas (LOP Inputs)'!N33+'Manure-to-Biogas (LOP Inputs)'!AB33+'Manure-to-Biogas (LOP Inputs)'!AP33+'Manure-to-Biogas (LOP Inputs)'!BD33+'Manure-to-Biogas (LOP Inputs)'!BR33+'Manure-to-Biogas (LOP Inputs)'!CF33)/'Manure-to-Biogas (LOP Inputs)'!B9,0) -> 0 | C19: MT CH4 / month
A20: Baseline CH4 emissions from non-anaerobic storage/treatment systems | B20: =IFERROR('Manure-to-Biogas (LOP Inputs)'!J47/'Manure-to-Biogas (LOP Inputs)'!B9,0) -> 0 | C20: MT CH4 / month
A21: Total Baseline CH4 atmospheric emissions | B21: =SUM(B19:B20) -> 0 | C21: MT CH4 / month | E21: Methane Avoided / CO2 Diverted Credits | F21: ='Biogas-to-RNG'!G95+'Biogas-to-RNG'!G96 -> 0
A25: 3) Project Methane Production
A26: Raw Inlet Gas as Feedstock | B26: ='Biogas-to-RNG'!G52 -> 0 | C26: SCF at 60°F
A27: Average Methane Content | B27: ='Biogas-to-RNG'!H52 -> 0 | C27: % CH4
A28: Biogas Production | B28: =IFERROR(('Biogas-to-RNG'!D53*Reference!E52/1000000)/F7,0) -> 0 | C28: MT CH4 / month | E28: Biogas Production & Upgrading | F28: ='Biogas-to-RNG'!G70+SUM('Biogas-to-RNG'!G71:G77) -> 0
A29: CH4 emissions from venting events | B29: ='Avoided Emissions'!D32 -> 0 | C29: MT CH4 / month
A30: CH4 emissions from effluent pond(s) | B30: ='Avoided Emissions'!E32 -> 0 | C30: MT CH4 / month
A31: CH4 emissions from non-BCS-related sources | B31: =IFERROR('Manure-to-Biogas (LOP Inputs)'!J108/'Manure-to-Biogas (LOP Inputs)'!B9,0) -> 0 | C31: MT CH4 / month | E31: Post-Digester Fugitives | F31: ='Biogas-to-RNG'!G80 -> 0
A32: Digester Leakage (standard value) | B32: ='Avoided Emissions'!G32 -> 0 | C32: MT CH4 / month | E32: Flared Biomethane | F32: ='Biogas-to-RNG'!G79 -> 0
A33: Upgrading Fugitives (2% minimum) | B33: =IFERROR(('Biogas-to-RNG'!H53*Reference!E52/1000000)/F7*'Biogas-to-RNG'!AH55,0) -> 0 | C33: MT CH4 / month
A34: Flared Biomethane | B34: =IFERROR(('Biogas-to-RNG'!AC53*Reference!E52/1000000)/F7,0) -> 0 | C34: MT CH4 / month
A35: Total Project CH4 atmospheric emissions | B35: =SUM(B29:B34) -> 0 | C35: MT CH4 / month | E35: Biomethane Transmission | F35: ='Biogas-to-RNG'!G82+'Biogas-to-RNG'!G83 -> 0
A36: Net reduction in atmospheric CH4 emissions from baseline | B36: =IFERROR(1-(B35/B21),0) -> 0 | C36: %
A38: NG Transport Electricity Mix | B38: ='Biogas-to-RNG'!B82 -> US Average
A39: Pipeline Distance to Centroid of CNG stations | B39: ='Biogas-to-RNG'!AH34 -> 0 | C39: miles
A40: Pipeline Distance to LNG facility | B40: ='Biogas-to-RNG'!AH40 -> 0 | C40: miles
A42: 4) Project Energy Usage | E42: LNG Production & Transmission | F42: ='Biogas-to-RNG'!G86+'Biogas-to-RNG'!G89 -> 0
A43: Diesel | B43: =IFERROR( IF( 'Biogas-to-RNG'!AA27="Diesel (Gallons)", ('Biogas-to-RNG'!P52 + 'Biogas-to-RNG'!W52 + 'Biogas-to-RNG'!AA52) * Reference!D9 * Reference!G45 / F7, ('Biogas-to-RNG'!P52 + 'Biogas-to-RNG'!W52) * Reference!D9 * Reference!G45 / F7 ), 0 ) -> 0 | C43: MJ / month
A44: Electricity (including on-site electricity from biogas) | B44: =IFERROR( IF( 'Biogas-to-RNG'!AA27="Grid Electricity (kWh)", ('Biogas-to-RNG'!L52 + 'Biogas-to-RNG'!U52 + 'Biogas-to-RNG'!V52 + 'Biogas-to-RNG'!AA52) * Reference!F45 / F7, ('Biogas-to-RNG'!L52 + 'Biogas-to-RNG'!U52 + 'Biogas-to-RNG'!V52) * Reference!F45 / F7 ), 0 ) -> 0 | C44: MJ / month
A45: Natural Gas | B45: =IFERROR( IF( 'Biogas-to-RNG'!AA27="NG (MMBtu, LHV)", ('Biogas-to-RNG'!O52+'Biogas-to-RNG'!R52+'Biogas-to-RNG'!Y52+'Biogas-to-RNG'!AA52)*Reference!H45/F7, ('Biogas-to-RNG'!O52+'Biogas-to-RNG'!R52+'Biogas-to-RNG'!Y52)*Reference!H45/F7 ), 0 ) -> 0 | C45: MJ / month
A46: Propane (process energy) | B46: =IFERROR( ( IF('Biogas-to-RNG'!Q27="Propane (Gallons)", 'Biogas-to-RNG'!Q52, 0) + IF('Biogas-to-RNG'!X27="Propane (Gallons)", 'Biogas-to-RNG'!X52, 0) + IF('Biogas-to-RNG'!AA27="Propane (Gallons)", 'Biogas-to-RNG'!AA52, 0) + 'Biogas-to-RNG'!Z52 ) * Reference!D12 * Reference!G45 / F7, 0 ) -> 0 | C46: MJ / month
A47: Raw Biogas (heat+process fuel) | B47: =IFERROR(('Biogas-to-RNG'!M55+'Biogas-to-RNG'!M55)*Reference!H45/F7, 0) -> 0 | C47: MJ/month
A48: Biomethane (heating + process fuel) | B48: =IFERROR(('Biogas-to-RNG'!N52+'Biogas-to-RNG'!T52)*Reference!H45/F7, 0) -> 0 | C48: MJ/month | E48: CNG Production | F48: ='Biogas-to-RNG'!G91 -> 3.73
A49: ='EF Table'!C80 -> User-Defined Fuel-1 (MJ) | B49: =IFERROR( ( IF('Biogas-to-RNG'!Q27='EF Table'!C80, 'Biogas-to-RNG'!Q52, 0) + IF('Biogas-to-RNG'!X27='EF Table'!C80, 'Biogas-to-RNG'!X52, 0) + IF('Biogas-to-RNG'!AA27='EF Table'!C80, 'Biogas-to-RNG'!AA52, 0) ) / F7, 0 ) -> 0 | C49: MJ/month | E49: Tailpipe Emissions | F49: ='Biogas-to-RNG'!G92 -> 61.55963474
A50: ='EF Table'!C81 -> User-Defined Fuel-2 (MJ) | B50: =IFERROR( ( IF('Biogas-to-RNG'!Q27='EF Table'!C81, 'Biogas-to-RNG'!Q52, 0) + IF('Biogas-to-RNG'!X27='EF Table'!C81, 'Biogas-to-RNG'!X52, 0) + IF('Biogas-to-RNG'!AA27='EF Table'!C81, 'Biogas-to-RNG'!AA52, 0) ) / F7, 0 ) -> 0 | C50: MJ/month
A51: ='EF Table'!C82 -> User-Defined Fuel-3 (MJ) | B51: =IFERROR( ( IF('Biogas-to-RNG'!Q27='EF Table'!C82, 'Biogas-to-RNG'!Q52, 0) + IF('Biogas-to-RNG'!X27='EF Table'!C82, 'Biogas-to-RNG'!X52, 0) + IF('Biogas-to-RNG'!AA27='EF Table'!C82, 'Biogas-to-RNG'!AA52, 0) ) / F7, 0 ) -> 0 | C51: MJ/month
A52: Fuel for Biomethane transport | B52: ='Biogas-to-RNG'!AA52 -> 0 | C52: ='Biogas-to-RNG'!AA27 -> User-Defined Fuel-3 (MJ)
A53: Natural Gas (Gas Btu Enhancement) | B53: ='Biogas-to-RNG'!Y52 -> 0 | C53: HHV in MMBtu
A54: Propane (Gas Btu Enhancement) | B54: ='Biogas-to-RNG'!Z52 -> 0 | C54: HHV in MMBtu
A55: Energy Return on Investment | B55: =IFERROR(B70/SUM(B43:B51),0) -> 0 | C55: MJ Outputs / MJ Inputs
E56: 1) CNG CI Breakdown
E57: Subtotal CI (gCO2e/MJ) | F57: ='Biogas-to-RNG'!G97 -> 0
E58: Conservative Margin of Safety (gCO2e/MJ)
A59: 5) Fuel Production | E59: Total CI (gCO2e/MJ) | F59: =SUM(F57:F58) -> 0
A60: Compressed Natural Gas (CNG) Production
A61: CNG Production Electricity Mix | B61: ='Biogas-to-RNG'!D24 -> ORMX
A64: LNG Transport & Dispense | E64: 2) LNG CI Breakdown
A65: Truck | B65: ='Biogas-to-RNG'!AL25 -> 0 | C65: miles | E65: Subtotal CI | F65: ='Biogas-to-RNG'!G98 -> 0
A66: Dispense | B66: =IFERROR('Biogas-to-RNG'!AL29*Reference!H45/F7,0) -> 0 | C66: MJ/month | E66: Conservative Margin of Safety (gCO2e/MJ)
E67: Total CI (gCO2e/MJ) | F67: =SUM(F65:F66) -> 0
A69: 6) Finished Fuel
A70: Biomethane Injected into Pipeline | B70: =IFERROR('Biogas-to-RNG'!AD52*Reference!H45/F7,0) -> 0 | C70: MJ / month
A71: Parasitic (On-site) Electricity from Biogas | B71: =IFERROR('Biogas-to-RNG'!U52*Reference!F45/F7,0) -> 0 | C71: MJ / month
A72: % Exported | B72: =IFERROR(B70/(B70+B71),0) -> 0 | C72: % | E72: 2) L-CNG CI Breakdown
E73: Subtotal CI | F73: ='Biogas-to-RNG'!G99 -> 0
E74: Conservative Margin of Safety (gCO2e/MJ)
E75: Total CI (gCO2e/MJ) | F75: =SUM(F73:F74) -> 0
A79: Operating Conditions:

Sheet Manure-to-Biogas (LOP Inputs)
C2: Calculations Based on Selected Equations from the "Compliance Offset Protocol Livestock Projects" (LOP)
B5: Section L1: Baseline Methane Emissions from Anaerobic Storage/Treatment Systems (BECH4,AS) (Reference: [Equation 5.3 in LOP])
B6: L1.1.1 Livestock Category (L) 1 | C6: L1.1.7 Reporting Month | D6: L1.1.8 Livestock Population | E6: L1.1.9 Calendar Days of the Month | F6: L1.1.10 Number of Reporting Days | G6: L1.1.11 Average Temperature | H6: L1.1.12 Van't Hoff-Arrhenius factor | I6: L1.1.13 Fraction of Volatile Solids Sent to Anaerobic Storage/Treatment System | J6: L1.1.14 Volatile Solids Available for Degradation | K6: L1.1.15 Retention Time and Drainage | L6: L1.1.16 Carryover from Previous Month | M6: L1.1.17 Volatile Solids Degraded | N6: L1.1.18 Baseline Methane Emissions, AS | P6: L1.2.1 Livestock Category (L) 2 | Q6: L1.2.7 Reporting Month | R6: L1.2.8 Livestock Population | S6: L1.2.9 Calendar Days of the Month | T6: L1.2.10 Number of Reporting Days | U6: L1.2.11 Average Temperature | V6: L1.2.12 Van't Hoff-Arrhenius factor | W6: L1.2.13 Fraction of Volatile Solids Sent to Anaerobic Storage/Treatment System | X6: L1.2.14 Volatile Solids Available for Degradation | Y6: L1.2.15 Retention Time and Drainage | Z6: L1.2.16 Carryover from Previous Month | AA6: L1.2.17 Volatile Solids Degraded | AB6: L1.2.18 Baseline Methane Emissions, AS | AD6: L1.3.1 Livestock Category (L) 3 | AE6: L1.3.7 Reporting Month | AF6: L1.3.8 Livestock Population | AG6: L1.3.9 Calendar Days of the Month | AH6: L1.3.10 Number of Reporting Days | AI6: L1.3.11 Average Temperature | AJ6: L1.3.12 Van't Hoff-Arrhenius factor | AK6: L1.3.13 Fraction of Volatile Solids Sent to Anaerobic Storage/Treatment System | AL6: L1.3.14 Volatile Solids Available for Degradation | AM6: L1.3.15 Retention Time and Drainage | AN6: L1.3.16 Carryover from Previous Month | AO6: L1.3.17 Volatile Solids Degraded | AP6: L1.3.18 Baseline Methane Emissions, AS | AR6: L1.4.1 Livestock Category (L) 4 | AS6: L1.4.7 Reporting Month | AT6: L1.4.8 Livestock Population | AU6: L1.4.9 Calendar Days of the Month | AV6: L1.4.10 Number of Reporting Days | AW6: L1.4.11 Average Temperature | AX6: L1.4.12 Van't Hoff-Arrhenius factor | AY6: L1.4.13 Fraction of Volatile Solids Sent to Anaerobic Storage/Treatment System | AZ6: L1.4.14 Volatile Solids Available for Degradation | BA6: L1.4.15 Retention Time and Drainage | BB6: L1.4.16 Carryover from Previous Month | BC6: L1.4.17 Volatile Solids Degraded | BD6: L1.4.18 Baseline Methane Emissions, AS | BF6: L1.5.1 Livestock Category (L) 5 | BG6: L1.5.7 Reporting Month | BH6: L1.5.8 Livestock Population | BI6: L1.5.9 Calendar Days of the Month | BJ6: L1.5.10 Number of Reporting Days | BK6: L1.5.11 Average Temperature | BL6: L1.5.12 Van't Hoff-Arrhenius factor | BM6: L1.5.13 Fraction of Volatile Solids Sent to Anaerobic Storage/Treatment System | BN6: L1.5.14 Volatile Solids Available for Degradation | BO6: L1.5.15 Retention Time and Drainage | BP6: L1.5.16 Carryover from Previous Month | BQ6: L1.5.17 Volatile Solids Degraded | BR6: L1.5.18 Baseline Methane Emissions, AS | BT6: L1.6.1 Livestock Category (L) 6 | BU6: L1.6.7 Reporting Month | BV6: L1.6.8 Livestock Population | BW6: L1.6.9 Calendar Days of the Month | BX6: L1.6.10 Number of Reporting Days | BY6: L1.6.11 Average Temperature | BZ6: L1.6.12 Van't Hoff-Arrhenius factor | CA6: L1.6.13 Fraction of Volatile Solids Sent to Anaerobic Storage/Treatment System | CB6: L1.6.14 Volatile Solids Available for Degradation | CC6: L1.6.15 Retention Time and Drainage | CD6: L1.6.16 Carryover from Previous Month | CE6: L1.6.17 Volatile Solids Degraded | CF6: L1.6.18 Baseline Methane Emissions, AS
B7: - | C7: (MM/YYYY) | D7: PL | E7: days | F7: RDrm (days) | G7: T2 (°C) | H7: f | I7: MSAS,L (fraction) | J7: VSavail,AS (kg) | K7: Select "System Emptied in This Month" for each September | L7: (VSavail-1,AS -VSdeg-1,AS) (kg) | M7: VSdeg,AS (kg) | N7: BECH4,AS (MT CH4) | P7: - | Q7: (MM/YYYY) | R7: PL | S7: days | T7: RDrm (days) | U7: T2 (°C) | V7: f | W7: MSAS,L (fraction) | X7: VSavail,AS (kg) | Y7: Select "System Emptied in This Month" for each September | Z7: (VSavail-1,AS -VSdeg-1,AS) (kg) | AA7: VSdeg,AS (kg) | AB7: BECH4,AS (MT CH4) | AD7: - | AE7: (MM/YYYY) | AF7: PL | AG7: days | AH7: RDrm (days) | AI7: T2 (°C) | AJ7: f | AK7: MSAS,L (fraction) | AL7: VSavail,AS (kg) | AM7: Select "System Emptied in This Month" for each September | AN7: (VSavail-1,AS -VSdeg-1,AS) (kg) | AO7: VSdeg,AS (kg) | AP7: BECH4,AS (MT CH4) | AR7: - | AS7: (MM/YYYY) | AT7: PL | AU7: days | AV7: RDrm (days) | AW7: T2 (°C) | AX7: f | AY7: MSAS,L (fraction) | AZ7: VSavail,AS (kg) | BA7: Select "System Emptied in This Month" for each September | BB7: (VSavail-1,AS -VSdeg-1,AS) (kg) | BC7: VSdeg,AS (kg) | BD7: BECH4,AS (MT CH4) | BF7: - | BG7: (MM/YYYY) | BH7: PL | BI7: days | BJ7: RDrm (days) | BK7: T2 (°C) | BL7: f | BM7: MSAS,L (fraction) | BN7: VSavail,AS (kg) | BO7: Select "System Emptied in This Month" for each September | BP7: (VSavail-1,AS -VSdeg-1,AS) (kg) | BQ7: VSdeg,AS (kg) | BR7: BECH4,AS (MT CH4) | BT7: - | BU7: (MM/YYYY) | BV7: PL | BW7: days | BX7: RDrm (days) | BY7: T2 (°C) | BZ7: f | CA7: MSAS,L (fraction) | CB7: VSavail,AS (kg) | CC7: Select "System Emptied in This Month" for each September | CD7: (VSavail-1,AS -VSdeg-1,AS) (kg) | CE7: VSdeg,AS (kg) | CF7: BECH4,AS (MT CH4)
B8: L1.1.2 Baseline Reporting Period (Months) | P8: L1.2.2 Baseline Reporting Period (Months) | AD8: L1.3.2 Baseline Reporting Period (Months) | AR8: L1.4.2 Baseline Reporting Period (Months) | BF8: L1.5.2 Baseline Reporting Period (Months) | BT8: L1.6.2 Baseline Reporting Period (Months)
B9: - | H9: =MIN(0.95, MAX(0.104, EXP(15175*((G9+273)-303.16)/(1.987*(G9+273)*303.17)))) -> 0.104 | J9: =(B$20*D9*I9*E9*0.8)+L9 -> 0 | K9: Not Applicable | L9: 0 | M9: =J9*H9 -> 0 | N9: =IFERROR(M9*B$16*0.68*0.001*(F9/E9), 0) -> 0 | P9: =$B$9 -> - | Q9: =IF($C9=0, "", $C9) ->  | S9: =E9 -> 0 | U9: =G9 -> 0 | V9: =MIN(0.95, MAX(0.104, EXP(15175*((U9+273)-303.16)/(1.987*(U9+273)*303.17)))) -> 0.104 | X9: =(P$20*R9*W9*S9*0.8)+Z9 -> 0 | Y9: Not Applicable | Z9: 0 | AA9: =X9*V9 -> 0 | AB9: =IFERROR(AA9*P$16*0.68*0.001*(T9/S9), 0) -> 0 | AD9: =$B$9 -> - | AE9: =IF($C9=0, "", $C9) ->  | AG9: =E9 -> 0 | AI9: =G9 -> 0 | AJ9: =MIN(0.95, MAX(0.104, EXP(15175*((AI9+273)-303.16)/(1.987*(AI9+273)*303.17)))) -> 0.104 | AL9: =(AD$20*AF9*AK9*AG9*0.8)+AN9 -> 0 | AM9: Not Applicable | AN9: 0 | AO9: =AL9*AJ9 -> 0 | AP9: =IFERROR(AO9*AD$16*0.68*0.001*(AH9/AG9), 0) -> 0 | AR9: =$B$9 -> - | AS9: =IF($C9=0, "", $C9) ->  | AU9: =E9 -> 0 | AW9: =G9 -> 0 | AX9: =MIN(0.95, MAX(0.104, EXP(15175*((AW9+273)-303.16)/(1.987*(AW9+273)*303.17)))) -> 0.104 | AZ9: =(AR$20*AT9*AY9*AU9*0.8)+BB9 -> 0 | BA9: Not Applicable | BB9: 0 | BC9: =AZ9*AX9 -> 0 | BD9: =IFERROR(BC9*AR$16*0.68*0.001*(AV9/AU9), 0) -> 0 | BF9: =$B$9 -> - | BG9: =IF($C9=0, "", $C9) ->  | BI9: =E9 -> 0 | BK9: =G9 -> 0 | BL9: =MIN(0.95, MAX(0.104, EXP(15175*((BK9+273)-303.16)/(1.987*(BK9+273)*303.17)))) -> 0.104 | BN9: =(BF$20*BH9*BM9*BI9*0.8)+BP9 -> 0 | BO9: Not Applicable | BP9: 0 | BQ9: =BN9*BL9 -> 0 | BR9: =IFERROR(BQ9*BF$16*0.68*0.001*(BJ9/BI9), 0) -> 0 | BT9: =$B$9 -> - | BU9: =IF($C9=0, "", $C9) ->  | BW9: =E9 -> 0 | BY9: =G9 -> 0 | BZ9: =MIN(0.95, MAX(0.104, EXP(15175*((BY9+273)-303.16)/(1.987*(BY9+273)*303.17)))) -> 0.104 | CB9: =(BT$20*BV9*CA9*BW9*0.8)+CD9 -> 0 | CC9: Not Applicable | CD9: 0 | CE9: =CB9*BZ9 -> 0 | CF9: =IFERROR(CE9*BT$16*0.68*0.001*(BX9/BW9), 0) -> 0
B10: L1.1.3 Livestock Average Mass | H10: =MIN(0.95, MAX(0.104, EXP(15175*((G10+273)-303.16)/(1.987*(G10+273)*303.17)))) -> 0.104 | J10: =(B$20*D10*I10*E10*0.8)+L10 -> 0 | K10: Not Applicable | L10: =IF(K9="Not Applicable", (J9-M9), 0) -> 0 | M10: 0 | N10: =IFERROR(M10*B$16*0.68*0.001*(F10/E10), 0) -> 0 | P10: L1.2.3 Livestock Average Mass | Q10: =IF($C10=0, "", $C10) ->  | S10: =E10 -> 0 | U10: =G10 -> 0 | V10: =MIN(0.95, MAX(0.104, EXP(15175*((U10+273)-303.16)/(1.987*(U10+273)*303.17)))) -> 0.104 | X10: 0 | Y10: Not Applicable | Z10: =IF(Y9="Not Applicable", (X9-AA9), 0) -> 0 | AA10: 0 | AB10: =IFERROR(AA10*P$16*0.68*0.001*(T10/S10), 0) -> 0 | AD10: L1.3.3 Livestock Average Mass | AE10: =IF($C10=0, "", $C10) ->  | AG10: =E10 -> 0 | AI10: =G10 -> 0 | AJ10: =MIN(0.95, MAX(0.104, EXP(15175*((AI10+273)-303.16)/(1.987*(AI10+273)*303.17)))) -> 0.104 | AL10: 0 | AM10: Not Applicable | AN10: =IF(AM9="Not Applicable", (AL9-AO9), 0) -> 0 | AO10: 0 | AP10: =IFERROR(AO10*AD$16*0.68*0.001*(AH10/AG10), 0) -> 0 | AR10: L1.4.3 Livestock Average Mass | AS10: =IF($C10=0, "", $C10) ->  | AU10: =E10 -> 0 | AW10: =G10 -> 0 | AX10: =MIN(0.95, MAX(0.104, EXP(15175*((AW10+273)-303.16)/(1.987*(AW10+273)*303.17)))) -> 0.104 | AZ10: 0 | BA10: Not Applicable | BB10: =IF(BA9="Not Applicable", (AZ9-BC9), 0) -> 0 | BC10: 0 | BD10: =IFERROR(BC10*AR$16*0.68*0.001*(AV10/AU10), 0) -> 0 | BF10: L1.5.3 Livestock Average Mass | BG10: =IF($C10=0, "", $C10) ->  | BI10: =E10 -> 0 | BK10: =G10 -> 0 | BL10: =MIN(0.95, MAX(0.104, EXP(15175*((BK10+273)-303.16)/(1.987*(BK10+273)*303.17)))) -> 0.104 | BN10: 0 | BO10: Not Applicable | BP10: =IF(BO9="Not Applicable", (BN9-BQ9), 0) -> 0 | BQ10: 0 | BR10: =IFERROR(BQ10*BF$16*0.68*0.001*(BJ10/BI10), 0) -> 0 | BT10: L1.6.3 Livestock Average Mass | BU10: =IF($C10=0, "", $C10) ->  | BW10: =E10 -> 0 | BY10: =G10 -> 0 | BZ10: =MIN(0.95, MAX(0.104, EXP(15175*((BY10+273)-303.16)/(1.987*(BY10+273)*303.17)))) -> 0.104 | CB10: 0 | CC10: Not Applicable | CD10: =IF(CC9="Not Applicable", (CB9-CE9), 0) -> 0 | CE10: 0 | CF10: =IFERROR(CE10*BT$16*0.68*0.001*(BX10/BW10), 0) -> 0
B11: (MassL, kg) | H11: 0.104 | J11: 0 | K11: Not Applicable | L11: =IF(K10="Not Applicable", (J10-M10), 0) -> 0 | M11: 0 | N11: 0 | P11: (MassL, kg) | S11: 0 | U11: 0 | V11: 0.104 | X11: 0 | Y11: Not Applicable | Z11: =IF(Y10="Not Applicable", (X10-AA10), 0) -> 0 | AA11: 0 | AB11: 0 | AD11: (MassL, kg) | AG11: 0 | AI11: 0 | AJ11: 0.104 | AL11: 0 | AM11: Not Applicable | AN11: =IF(AM10="Not Applicable", (AL10-AO10), 0) -> 0 | AO11: 0 | AP11: 0 | AR11: (MassL, kg) | AU11: 0 | AW11: 0 | AX11: 0.104 | AZ11: 0 | BA11: Not Applicable | BB11: =IF(BA10="Not Applicable", (AZ10-BC10), 0) -> 0 | BC11: 0 | BD11: 0 | BF11: (MassL, kg) | BI11: 0 | BK11: 0 | BL11: 0.104 | BN11: 0 | BO11: Not Applicable | BP11: =IF(BO10="Not Applicable", (BN10-BQ10), 0) -> 0 | BQ11: 0 | BR11: 0 | BT11: (MassL, kg) | BW11: 0 | BY11: 0 | BZ11: 0.104 | CB11: 0 | CC11: Not Applicable | CD11: =IF(CC10="Not Applicable", (CB10-CE10), 0) -> 0 | CE11: 0 | CF11: 0
B12: =IFERROR(VLOOKUP(B7, Reference!$A$94:$B$103, 2, FALSE), 0) -> 0 | H12: 0.104 | J12: 0 | K12: Not Applicable | L12: 0 | M12: 0 | N12: 0 | P12: =IFERROR(VLOOKUP(P7, Reference!$A$94:$B$103, 2, FALSE), 0) -> 0 | S12: 0 | U12: 0 | V12: 0.104 | X12: 0 | Y12: Not Applicable | Z12: 0 | AA12: 0 | AB12: 0 | AD12: =IFERROR(VLOOKUP(AD7, Reference!$A$94:$B$103, 2, FALSE), 0) -> 0 | AG12: 0 | AI12: 0 | AJ12: 0.104 | AL12: 0 | AM12: Not Applicable | AN12: 0 | AO12: 0 | AP12: 0 | AR12: =IFERROR(VLOOKUP(AR7, Reference!$A$94:$B$103, 2, FALSE), 0) -> 0 | AU12: 0 | AW12: 0 | AX12: 0.104 | AZ12: 0 | BA12: Not Applicable | BB12: 0 | BC12: 0 | BD12: 0 | BF12: =IFERROR(VLOOKUP(BF7, Reference!$A$94:$B$103, 2, FALSE), 0) -> 0 | BI12: 0 | BK12: 0 | BL12: 0.104 | BN12: 0 | BO12: Not Applicable | BP12: 0 | BQ12: 0 | BR12: 0 | BT12: =IFERROR(VLOOKUP(BT7, Reference!$A$94:$B$103, 2, FALSE), 0) -> 0 | BW12: 0 | BY12: 0 | BZ12: 0.104 | CB12: 0 | CC12: Not Applicable | CD12: 0 | CE12: 0 | CF12: 0
H13: 0.104 | J13: 0 | K13: Not Applicable | L13: 0 | M13: 0 | N13: =IFERROR(M13*B$16*0.68*0.001*(F13/E13), 0) -> 0 | S13: 0 | U13: 0 | V13: 0.104 | X13: 0 | Y13: Not Applicable | Z13: 0 | AA13: 0 | AB13: 0 | AG13: 0 | AI13: 0 | AJ13: 0.104 | AL13: 0 | AM13: Not Applicable | AN13: 0 | AO13: 0 | AP13: 0 | AU13: 0 | AW13: 0 | AX13: 0.104 | AZ13: 0 | BA13: Not Applicable | BB13: 0 | BC13: 0 | BD13: 0 | BI13: 0 | BK13: 0 | BL13: 0.104 | BN13: 0 | BO13: Not Applicable | BP13: 0 | BQ13: 0 | BR13: 0 | BW13: 0 | BY13: 0 | BZ13: 0.104 | CB13: 0 | CC13: Not Applicable | CD13: 0 | CE13: 0 | CF13: 0
B14: L1.1.4 Maximum CH4 Potential | H14: 0.104 | J14: 0 | K14: Not Applicable | L14: =IF(K13="Not Applicable", (J13-M13), 0) -> 0 | M14: =J14*H14 -> 0 | N14: =IFERROR(M14*B$16*0.68*0.001*(F14/E14), 0) -> 0 | P14: L1.2.4 Maximum CH4 Potential | S14: 0 | U14: 0 | V14: 0.104 | X14: 0 | Y14: Not Applicable | Z14: 0 | AA14: 0 | AB14: 0 | AD14: L1.3.4 Maximum CH4 Potential | AG14: 0 | AI14: 0 | AJ14: 0.104 | AL14: 0 | AM14: Not Applicable | AN14: 0 | AO14: 0 | AP14: 0 | AR14: L1.4.4 Maximum CH4 Potential | AU14: 0 | AW14: 0 | AX14: 0.104 | AZ14: 0 | BA14: Not Applicable | BB14: 0 | BC14: 0 | BD14: 0 | BF14: L1.5.4 Maximum CH4 Potential | BI14: 0 | BK14: 0 | BL14: 0.104 | BN14: 0 | BO14: Not Applicable | BP14: 0 | BQ14: 0 | BR14: 0 | BT14: L1.6.4 Maximum CH4 Potential | BW14: 0 | BY14: 0 | BZ14: 0.104 | CB14: 0 | CC14: Not Applicable | CD14: 0 | CE14: 0 | CF14: 0
B15: (Bo,L , m3 CH4/kg VS) | H15: =MIN(0.95, MAX(0.104, EXP(15175*((G15+273)-303.16)/(1.987*(G15+273)*303.17)))) -> 0.104 | J15: 0 | K15: Not Applicable | L15: 0 | M15: 0 | N15: 0 | P15: (Bo,L , m3 CH4/kg VS) | S15: 0 | U15: 0 | V15: 0.104 | X15: 0 | Y15: Not Applicable | Z15: 0 | AA15: 0 | AB15: 0 | AD15: (Bo,L , m3 CH4/kg VS) | AG15: 0 | AI15: 0 | AJ15: 0.104 | AL15: 0 | AM15: Not Applicable | AN15: 0 | AO15: 0 | AP15: 0 | AR15: (Bo,L , m3 CH4/kg VS) | AU15: 0 | AW15: 0 | AX15: 0.104 | AZ15: 0 | BA15: Not Applicable | BB15: 0 | BC15: 0 | BD15: 0 | BF15: (Bo,L , m3 CH4/kg VS) | BI15: 0 | BK15: 0 | BL15: 0.104 | BN15: 0 | BO15: Not Applicable | BP15: 0 | BQ15: 0 | BR15: 0 | BT15: (Bo,L , m3 CH4/kg VS) | BW15: 0 | BY15: 0 | BZ15: 0.104 | CB15: 0 | CC15: Not Applicable | CD15: 0 | CE15: 0 | CF15: 0
B16: =IFERROR(VLOOKUP(B7, Reference!$A$94:$D$103,4, FALSE), 0) -> 0 | H16: 0.104 | J16: 0 | K16: Not Applicable | L16: 0 | M16: 0 | N16: 0 | P16: =IFERROR(VLOOKUP(P7, Reference!$A$94:$D$103,4, FALSE), 0) -> 0 | S16: 0 | U16: 0 | V16: 0.104 | X16: 0 | Y16: Not Applicable | Z16: 0 | AA16: 0 | AB16: 0 | AD16: =IFERROR(VLOOKUP(AD7, Reference!$A$94:$D$103,4, FALSE), 0) -> 0 | AG16: 0 | AI16: 0 | AJ16: 0.104 | AL16: 0 | AM16: Not Applicable | AN16: 0 | AO16: 0 | AP16: 0 | AR16: =IFERROR(VLOOKUP(AR7, Reference!$A$94:$D$103,4, FALSE), 0) -> 0 | AU16: 0 | AW16: 0 | AX16: 0.104 | AZ16: 0 | BA16: Not Applicable | BB16: 0 | BC16: 0 | BD16: 0 | BF16: =IFERROR(VLOOKUP(BF7, Reference!$A$94:$D$103,4, FALSE), 0) -> 0 | BI16: 0 | BK16: 0 | BL16: 0.104 | BN16: 0 | BO16: Not Applicable | BP16: 0 | BQ16: 0 | BR16: 0 | BT16: =IFERROR(VLOOKUP(BT7, Reference!$A$94:$D$103,4, FALSE), 0) -> 0 | BW16: 0 | BY16: 0 | BZ16: 0.104 | CB16: 0 | CC16: Not Applicable | CD16: 0 | CE16: 0 | CF16: 0
H17: 0.104 | J17: 0 | K17: Not Applicable | L17: 0 | M17: 0 | N17: 0 | S17: 0 | U17: 0 | V17: 0.104 | X17: 0 | Y17: Not Applicable | Z17: 0 | AA17: 0 | AB17: 0 | AG17: 0 | AI17: 0 | AJ17: 0.104 | AL17: 0 | AM17: Not Applicable | AN17: 0 | AO17: 0 | AP17: 0 | AU17: 0 | AW17: 0 | AX17: 0.104 | AZ17: 0 | BA17: Not Applicable | BB17: 0 | BC17: 0 | BD17: 0 | BI17: 0 | BK17: 0 | BL17: 0.104 | BN17: 0 | BO17: Not Applicable | BP17: 0 | BQ17: 0 | BR17: 0 | BW17: 0 | BY17: 0 | BZ17: 0.104 | CB17: 0 | CC17: Not Applicable | CD17: 0 | CE17: 0 | CF17: 0
B18: L1.1.5 Livestock Excretion Rate | H18: 0.104 | J18: 0 | K18: Not Applicable | L18: 0 | M18: 0 | N18: 0 | P18: L1.2.5 Livestock Excretion Rate | S18: 0 | U18: 0 | V18: 0.104 | X18: 0 | Y18: Not Applicable | Z18: 0 | AA18: 0 | AB18: 0 | AD18: L1.3.5 Livestock Excretion Rate | AG18: 0 | AI18: 0 | AJ18: 0.104 | AL18: 0 | AM18: Not Applicable | AN18: 0 | AO18: 0 | AP18: 0 | AR18: L1.4.5 Livestock Excretion Rate | AU18: 0 | AW18: 0 | AX18: 0.104 | AZ18: 0 | BA18: Not Applicable | BB18: 0 | BC18: 0 | BD18: 0 | BF18: L1.5.5 Livestock Excretion Rate | BI18: 0 | BK18: 0 | BL18: 0.104 | BN18: 0 | BO18: Not Applicable | BP18: 0 | BQ18: 0 | BR18: 0 | BT18: L1.6.5 Livestock Excretion Rate | BW18: 0 | BY18: 0 | BZ18: 0.104 | CB18: 0 | CC18: Not Applicable | CD18: 0 | CE18: 0 | CF18: 0
B19: (VSL, dry kg/animal/day) | H19: =MIN(0.95, MAX(0.104, EXP(15175*((G19+273)-303.16)/(1.987*(G19+273)*303.17)))) -> 0.104 | J19: 0 | K19: Not Applicable | L19: 0 | M19: 0 | N19: 0 | P19: (VSL, dry kg/animal/day) | S19: 0 | U19: 0 | V19: 0.104 | X19: 0 | Y19: Not Applicable | Z19: 0 | AA19: 0 | AB19: 0 | AD19: (VSL, dry kg/animal/day) | AG19: 0 | AI19: 0 | AJ19: 0.104 | AL19: 0 | AM19: Not Applicable | AN19: 0 | AO19: 0 | AP19: 0 | AR19: (VSL, dry kg/animal/day) | AU19: 0 | AW19: 0 | AX19: 0.104 | AZ19: 0 | BA19: Not Applicable | BB19: 0 | BC19: 0 | BD19: 0 | BF19: (VSL, dry kg/animal/day) | BI19: 0 | BK19: 0 | BL19: 0.104 | BN19: 0 | BO19: Not Applicable | BP19: 0 | BQ19: 0 | BR19: 0 | BT19: (VSL, dry kg/animal/day) | BW19: 0 | BY19: 0 | BZ19: 0.104 | CB19: 0 | CC19: Not Applicable | CD19: 0 | CE19: 0 | CF19: 0
B20: =IFERROR(VLOOKUP(B7, Reference!$A$94:$D$103, 3, FALSE)*B12/1000, 0) -> 0 | H20: 0.104 | J20: 0 | K20: Not Applicable | L20: 0 | M20: 0 | N20: 0 | P20: =IFERROR(VLOOKUP(P7, Reference!$A$94:$D$103, 3, FALSE)*P12/1000, 0) -> 0 | S20: 0 | U20: 0 | V20: 0.104 | X20: 0 | Y20: Not Applicable | Z20: 0 | AA20: 0 | AB20: 0 | AD20: =IFERROR(VLOOKUP(AD7, Reference!$A$94:$D$103, 3, FALSE)*AD12/1000, 0) -> 0 | AG20: 0 | AI20: 0 | AJ20: 0.104 | AL20: 0 | AM20: Not Applicable | AN20: 0 | AO20: 0 | AP20: 0 | AR20: =IFERROR(VLOOKUP(AR7, Reference!$A$94:$D$103, 3, FALSE)*AR12/1000, 0) -> 0 | AU20: 0 | AW20: 0 | AX20: 0.104 | AZ20: 0 | BA20: Not Applicable | BB20: 0 | BC20: 0 | BD20: 0 | BF20: =IFERROR(VLOOKUP(BF7, Reference!$A$94:$D$103, 3, FALSE)*BF12/1000, 0) -> 0 | BI20: 0 | BK20: 0 | BL20: 0.104 | BN20: 0 | BO20: Not Applicable | BP20: 0 | BQ20: 0 | BR20: 0 | BT20: =IFERROR(VLOOKUP(BT7, Reference!$A$94:$D$103, 3, FALSE)*BT12/1000, 0) -> 0 | BW20: 0 | BY20: 0 | BZ20: 0.104 | CB20: 0 | CC20: Not Applicable | CD20: 0 | CE20: 0 | CF20: 0
H21: =MIN(0.95, MAX(0.104, EXP(15175*((G21+273)-303.16)/(1.987*(G21+273)*303.17)))) -> 0.104 | J21: 0 | K21: Not Applicable | L21: 0 | M21: 0 | N21: 0 | S21: 0 | U21: 0 | V21: 0.104 | X21: 0 | Y21: Not Applicable | Z21: 0 | AA21: 0 | AB21: 0 | AG21: 0 | AI21: 0 | AJ21: 0.104 | AL21: 0 | AM21: Not Applicable | AN21: 0 | AO21: 0 | AP21: 0 | AU21: 0 | AW21: 0 | AX21: 0.104 | AZ21: 0 | BA21: Not Applicable | BB21: 0 | BC21: 0 | BD21: 0 | BI21: 0 | BK21: 0 | BL21: 0.104 | BN21: 0 | BO21: Not Applicable | BP21: 0 | BQ21: 0 | BR21: 0 | BW21: 0 | BY21: 0 | BZ21: 0.104 | CB21: 0 | CC21: Not Applicable | CD21: 0 | CE21: 0 | CF21: 0
B22: L1.1.6 Farm Name | H22: 0.104 | J22: 0 | K22: Not Applicable | L22: 0 | M22: 0 | N22: 0 | P22: L1.2.6 Farm Name | S22: 0 | U22: 0 | V22: 0.104 | X22: 0 | Y22: Not Applicable | Z22: 0 | AA22: 0 | AB22: 0 | AD22: L1.3.6 Farm Name | AG22: 0 | AI22: 0 | AJ22: 0.104 | AL22: 0 | AM22: Not Applicable | AN22: 0 | AO22: 0 | AP22: 0 | AR22: L1.4.6 Farm Name | AU22: 0 | AW22: 0 | AX22: 0.104 | AZ22: 0 | BA22: Not Applicable | BB22: 0 | BC22: 0 | BD22: 0 | BF22: L1.5.6 Farm Name | BI22: 0 | BK22: 0 | BL22: 0.104 | BN22: 0 | BO22: Not Applicable | BP22: 0 | BQ22: 0 | BR22: 0 | BT22: L1.6.6 Farm Name | BW22: 0 | BY22: 0 | BZ22: 0.104 | CB22: 0 | CC22: Not Applicable | CD22: 0 | CE22: 0 | CF22: 0
H23: 0.104 | J23: 0 | K23: Not Applicable | L23: 0 | M23: 0 | N23: 0 | S23: 0 | U23: 0 | V23: 0.104 | X23: 0 | Y23: Not Applicable | Z23: 0 | AA23: 0 | AB23: 0 | AG23: 0 | AI23: 0 | AJ23: 0.104 | AL23: 0 | AM23: Not Applicable | AN23: 0 | AO23: 0 | AP23: 0 | AU23: 0 | AW23: 0 | AX23: 0.104 | AZ23: 0 | BA23: Not Applicable | BB23: 0 | BC23: 0 | BD23: 0 | BI23: 0 | BK23: 0 | BL23: 0.104 | BN23: 0 | BO23: Not Applicable | BP23: 0 | BQ23: 0 | BR23: 0 | BW23: 0 | BY23: 0 | BZ23: 0.104 | CB23: 0 | CC23: Not Applicable | CD23: 0 | CE23: 0 | CF23: 0
H24: 0.104 | J24: 0 | K24: Not Applicable | L24: 0 | M24: 0 | N24: 0 | S24: 0 | U24: 0 | V24: 0.104 | X24: 0 | Y24: Not Applicable | Z24: 0 | AA24: 0 | AB24: 0 | AG24: 0 | AI24: 0 | AJ24: 0.104 | AL24: 0 | AM24: Not Applicable | AN24: 0 | AO24: 0 | AP24: 0 | AU24: 0 | AW24: 0 | AX24: 0.104 | AZ24: 0 | BA24: Not Applicable | BB24: 0 | BC24: 0 | BD24: 0 | BI24: 0 | BK24: 0 | BL24: 0.104 | BN24: 0 | BO24: Not Applicable | BP24: 0 | BQ24: 0 | BR24: 0 | BW24: 0 | BY24: 0 | BZ24: 0.104 | CB24: 0 | CC24: Not Applicable | CD24: 0 | CE24: 0 | CF24: 0
H25: 0.104 | J25: 0 | K25: Not Applicable | L25: 0 | M25: 0 | N25: 0 | S25: 0 | U25: 0 | V25: 0.104 | X25: 0 | Y25: Not Applicable | Z25: 0 | AA25: 0 | AB25: 0 | AG25: 0 | AI25: 0 | AJ25: 0.104 | AL25: 0 | AM25: Not Applicable | AN25: 0 | AO25: 0 | AP25: 0 | AU25: 0 | AW25: 0 | AX25: 0.104 | AZ25: 0 | BA25: Not Applicable | BB25: 0 | BC25: 0 | BD25: 0 | BI25: 0 | BK25: 0 | BL25: 0.104 | BN25: 0 | BO25: Not Applicable | BP25: 0 | BQ25: 0 | BR25: 0 | BW25: 0 | BY25: 0 | BZ25: 0.104 | CB25: 0 | CC25: Not Applicable | CD25: 0 | CE25: 0 | CF25: 0
H26: 0.104 | J26: 0 | K26: Not Applicable | L26: 0 | M26: 0 | N26: 0 | S26: 0 | U26: 0 | V26: 0.104 | X26: 0 | Y26: Not Applicable | Z26: 0 | AA26: 0 | AB26: 0 | AG26: 0 | AI26: 0 | AJ26: 0.104 | AL26: 0 | AM26: Not Applicable | AN26: 0 | AO26: 0 | AP26: 0 | AU26: 0 | AW26: 0 | AX26: 0.104 | AZ26: 0 | BA26: Not Applicable | BB26: 0 | BC26: 0 | BD26: 0 | BI26: 0 | BK26: 0 | BL26: 0.104 | BN26: 0 | BO26: Not Applicable | BP26: 0 | BQ26: 0 | BR26: 0 | BW26: 0 | BY26: 0 | BZ26: 0.104 | CB26: 0 | CC26: Not Applicable | CD26: 0 | CE26: 0 | CF26: 0
H27: 0.104 | J27: 0 | K27: Not Applicable | L27: 0 | M27: 0 | N27: 0 | S27: 0 | U27: 0 | V27: 0.104 | X27: 0 | Y27: Not Applicable | Z27: 0 | AA27: 0 | AB27: 0 | AG27: 0 | AI27: 0 | AJ27: 0.104 | AL27: 0 | AM27: Not Applicable | AN27: 0 | AO27: 0 | AP27: 0 | AU27: 0 | AW27: 0 | AX27: 0.104 | AZ27: 0 | BA27: Not Applicable | BB27: 0 | BC27: 0 | BD27: 0 | BI27: 0 | BK27: 0 | BL27: 0.104 | BN27: 0 | BO27: Not Applicable | BP27: 0 | BQ27: 0 | BR27: 0 | BW27: 0 | BY27: 0 | BZ27: 0.104 | CB27: 0 | CC27: Not Applicable | CD27: 0 | CE27: 0 | CF27: 0
H28: 0.104 | J28: 0 | K28: Not Applicable | L28: 0 | M28: 0 | N28: 0 | S28: 0 | U28: 0 | V28: 0.104 | X28: 0 | Y28: Not Applicable | Z28: 0 | AA28: 0 | AB28: 0 | AG28: 0 | AI28: 0 | AJ28: 0.104 | AL28: 0 | AM28: Not Applicable | AN28: 0 | AO28: 0 | AP28: 0 | AU28: 0 | AW28: 0 | AX28: 0.104 | AZ28: 0 | BA28: Not Applicable | BB28: 0 | BC28: 0 | BD28: 0 | BI28: 0 | BK28: 0 | BL28: 0.104 | BN28: 0 | BO28: Not Applicable | BP28: 0 | BQ28: 0 | BR28: 0 | BW28: 0 | BY28: 0 | BZ28: 0.104 | CB28: 0 | CC28: Not Applicable | CD28: 0 | CE28: 0 | CF28: 0
H29: 0.104 | J29: 0 | K29: Not Applicable | L29: 0 | M29: 0 | N29: 0 | S29: 0 | U29: 0 | V29: 0.104 | X29: 0 | Y29: Not Applicable | Z29: 0 | AA29: 0 | AB29: 0 | AG29: 0 | AI29: 0 | AJ29: 0.104 | AL29: 0 | AM29: Not Applicable | AN29: 0 | AO29: 0 | AP29: 0 | AU29: 0 | AW29: 0 | AX29: 0.104 | AZ29: 0 | BA29: Not Applicable | BB29: 0 | BC29: 0 | BD29: 0 | BI29: 0 | BK29: 0 | BL29: 0.104 | BN29: 0 | BO29: Not Applicable | BP29: 0 | BQ29: 0 | BR29: 0 | BW29: 0 | BY29: 0 | BZ29: 0.104 | CB29: 0 | CC29: Not Applicable | CD29: 0 | CE29: 0 | CF29: 0
H30: 0.104 | J30: 0 | K30: Not Applicable | L30: 0 | M30: 0 | N30: 0 | S30: 0 | U30: 0 | V30: 0.104 | X30: 0 | Y30: Not Applicable | Z30: 0 | AA30: 0 | AB30: 0 | AG30: 0 | AI30: 0 | AJ30: 0.104 | AL30: 0 | AM30: Not Applicable | AN30: 0 | AO30: 0 | AP30: 0 | AU30: 0 | AW30: 0 | AX30: 0.104 | AZ30: 0 | BA30: Not Applicable | BB30: 0 | BC30: 0 | BD30: 0 | BI30: 0 | BK30: 0 | BL30: 0.104 | BN30: 0 | BO30: Not Applicable | BP30: 0 | BQ30: 0 | BR30: 0 | BW30: 0 | BY30: 0 | BZ30: 0.104 | CB30: 0 | CC30: Not Applicable | CD30: 0 | CE30: 0 | CF30: 0
H31: 0.104 | J31: 0 | K31: Not Applicable | L31: 0 | M31: 0 | N31: 0 | S31: 0 | U31: 0 | V31: 0.104 | X31: 0 | Y31: Not Applicable | Z31: 0 | AA31: 0 | AB31: 0 | AG31: 0 | AI31: 0 | AJ31: 0.104 | AL31: 0 | AM31: Not Applicable | AN31: 0 | AO31: 0 | AP31: 0 | AU31: 0 | AW31: 0 | AX31: 0.104 | AZ31: 0 | BA31: Not Applicable | BB31: 0 | BC31: 0 | BD31: 0 | BI31: 0 | BK31: 0 | BL31: 0.104 | BN31: 0 | BO31: Not Applicable | BP31: 0 | BQ31: 0 | BR31: 0 | BW31: 0 | BY31: 0 | BZ31: 0.104 | CB31: 0 | CC31: Not Applicable | CD31: 0 | CE31: 0 | CF31: 0
H32: 0.104 | J32: 0 | K32: Not Applicable | L32: 0 | M32: 0 | N32: 0 | S32: 0 | U32: 0 | V32: 0.104 | X32: 0 | Y32: Not Applicable | Z32: 0 | AA32: 0 | AB32: 0 | AG32: 0 | AI32: 0 | AJ32: 0.104 | AL32: 0 | AM32: Not Applicable | AN32: 0 | AO32: 0 | AP32: 0 | AU32: 0 | AW32: 0 | AX32: 0.104 | AZ32: 0 | BA32: Not Applicable | BB32: 0 | BC32: 0 | BD32: 0 | BI32: 0 | BK32: 0 | BL32: 0.104 | BN32: 0 | BO32: Not Applicable | BP32: 0 | BQ32: 0 | BR32: 0 | BW32: 0 | BY32: 0 | BZ32: 0.104 | CB32: 0 | CC32: Not Applicable | CD32: 0 | CE32: 0 | CF32: 0
C33: Total | N33: =IF(COUNTIF(C9:C32,">0")<>B9,"ERROR",IF(B9=12,SUM(N9:N20),IF(B9=24,SUM(N9:N32),IF(B9="-","ERROR")))) -> ERROR | Q33: Total | AB33: =IF(COUNTIF(Q9:Q32,">0")<>P9,"ERROR",IF(P9=12,SUM(AB9:AB20),IF(P9=24,SUM(AB9:AB32),IF(P9="-","ERROR")))) -> ERROR | AE33: Total | AP33: =IF(COUNTIF(AE9:AE32,">0")<>AD9,"ERROR",IF(AD9=12,SUM(AP9:AP20),IF(AD9=24,SUM(AP9:AP32),IF(AD9="-","ERROR")))) -> ERROR | AS33: Total | BD33: =IF(COUNTIF(AS9:AS32,">0")<>AR9,"ERROR",IF(AR9=12,SUM(BD9:BD20),IF(AR9=24,SUM(BD9:BD32),IF(AR9="-","ERROR")))) -> ERROR | BG33: Total | BR33: =IF(COUNTIF(BG9:BG32,">0")<>BF9,"ERROR",IF(BF9=12,SUM(BR9:BR20),IF(BF9=24,SUM(BR9:BR32),IF(BF9="-","ERROR")))) -> ERROR | BU33: Total | CF33: =IF(COUNTIF(BU9:BU32,">0")<>BT9,"ERROR",IF(BT9=12,SUM(CF9:CF20),IF(BT9=24,SUM(CF9:CF32),IF(BT9="-","ERROR")))) -> ERROR
B36: Section L2: Baseline Methane Emissions from Other Storage/Treatment Systems (BECH4,nAS) (Reference:[Equation 5.4 in LOP])
C37: L2.2 Methane Conversion Factor (MCFnAS, fraction) | D37: L2.3 Manure Managed in Other Storage/Treatment System (MSL,nAS, fraction)
B38: Livestock Category (L) | D38: =$B$7 -> - | E38: =$P$7 -> - | F38: =$AD$7 -> - | G38: =$AR$7 -> - | H38: =$BF$7 -> - | I38: =$BT$7 -> -
B39: L2.1 Other storage/treatment Systems
B40: ~~Select Storage/Treatment~~ | C40: =IFERROR(IF(B40>0, VLOOKUP(B40, Reference!$A$168:$T$184, MATCH('Biogas-to-RNG'!$F$20, Reference!$A$168:$T$168), FALSE),0),0) -> 0
B41: ~~Select Storage/Treatment~~ | C41: =IFERROR(IF(B41>0, VLOOKUP(B41, Reference!$A$168:$T$184, MATCH('Biogas-to-RNG'!$F$20, Reference!$A$168:$T$168), FALSE),0),0) -> 0
B42: ~~Select Storage/Treatment~~ | C42: =IFERROR(IF(B42>0, VLOOKUP(B42, Reference!$A$168:$T$184, MATCH('Biogas-to-RNG'!$F$20, Reference!$A$168:$T$168), FALSE),0),0) -> 0
B43: ~~Select Storage/Treatment~~ | C43: =IFERROR(IF(B43>0, VLOOKUP(B43, Reference!$A$168:$T$184, MATCH('Biogas-to-RNG'!$F$20, Reference!$A$168:$T$168), FALSE),0),0) -> 0
B44: ~~Select Storage/Treatment~~ | C44: =IFERROR(IF(B44>0, VLOOKUP(B44, Reference!$A$168:$T$184, MATCH('Biogas-to-RNG'!$F$20, Reference!$A$168:$T$168), FALSE),0),0) -> 0
B45: ~~Select Storage/Treatment~~ | C45: =IFERROR(IF(B45>0, VLOOKUP(B45, Reference!$A$168:$T$184, MATCH('Biogas-to-RNG'!$F$20, Reference!$A$168:$T$168), FALSE),0),0) -> 0
B46: ~~Select Storage/Treatment~~ | C46: =IFERROR(IF(B46>0, VLOOKUP(B46, Reference!$A$168:$T$184, MATCH('Biogas-to-RNG'!$F$20, Reference!$A$168:$T$168), FALSE),0),0) -> 0 | J46: Total (BECH4,nAS , MT CH4)
B47: L2.4 Baseline Methane Emissions, non-AS (BECH4,L,nAS , MT CH4) | D47: =IFERROR(($D$84*$E$84*$I$84*0.68)*SUMPRODUCT($C$40:$C$46,D40:D46)*$C$84*0.001, 0) -> 0 | E47: =IFERROR(($D$85*$E$85*$I$84*0.68)*SUMPRODUCT($C$40:$C$46,E40:E46)*$C$85*0.001,0) -> 0 | F47: =IFERROR(($D$86*$E$86*$I$84*0.68)*SUMPRODUCT($C$40:$C$46,F40:F46)*$C$86*0.001,0) -> 0 | G47: =IFERROR(($D$87*$E$87*$I$84*0.68)*SUMPRODUCT($C$40:$C$46,G40:G46)*$C$87*0.001,0) -> 0 | H47: =IFERROR(($D$88*$E$88*$I$84*0.68)*SUMPRODUCT($C$40:$C$46,H40:H46)*$C$88*0.001,0) -> 0 | I47: =IFERROR(($D$89*$E$89*$I$84*0.68)*SUMPRODUCT($C$40:$C$46,I40:I46)*$C$89*0.001,0) -> 0 | J47: =SUM(D47:I47) -> 0
B50: Section L3: Project Methane Emissions from Venting Events (CH4 vent) in the Biogas Control System (BCS) (Reference: [Equation 5.6-Venting in LOP])
B51: L3.1 Reporting Month (MM/YYYY) | C51: Method 1 | G51: Method 2 | I51: L3.8 Project Methane Emissions from Venting
C52: L3.2 Maximum Biogas Storage of the BCS System | D52: L3.3 Average Daily Biogas Production for the 7 Days Preceding the Venting | E52: L3.4 Number of Days for the Uncontrolled Venting | F52: L3.5 Quarterly Methane Concentration | G52: L3.6 Vented Biogas Flow, (metered) | H52: L3.7 Biomethane Content in Vented Biogas (metered)
C53: MSBCS (scf) | D53: Fpw (scf/day) | E53: t (days) | F53: CCH4 (fraction) | G53: Standard Cubic Feet @ 60oF, 1 atm | H53: % Methane | I53: CH4 vent (MT)
B54: =IF('Biogas-to-RNG'!B28=0, " ",'Biogas-to-RNG'!B28) ->  | I54: =((D54*E54+C54)*F54)*0.0423*0.000454+G54*H54*Reference!$E$16/(10^6) -> 0
B55: =IF('Biogas-to-RNG'!B29=0, " ",'Biogas-to-RNG'!B29) ->  | I55: =((D55*E55+C55)*F55)*0.0423*0.000454+G55*H55*Reference!$E$16/(10^6) -> 0
B56: =IF('Biogas-to-RNG'!B30=0, " ",'Biogas-to-RNG'!B30) ->  | I56: =((D56*E56+C56)*F56)*0.0423*0.000454+G56*H56*Reference!$E$16/(10^6) -> 0
B57: =IF('Biogas-to-RNG'!B31=0, " ",'Biogas-to-RNG'!B31) ->  | I57: =((D57*E57+C57)*F57)*0.0423*0.000454+G57*H57*Reference!$E$16/(10^6) -> 0
B58: =IF('Biogas-to-RNG'!B32=0, " ",'Biogas-to-RNG'!B32) ->  | I58: =((D58*E58+C58)*F58)*0.0423*0.000454+G58*H58*Reference!$E$16/(10^6) -> 0
B59: =IF('Biogas-to-RNG'!B33=0, " ",'Biogas-to-RNG'!B33) ->  | I59: =((D59*E59+C59)*F59)*0.0423*0.000454+G59*H59*Reference!$E$16/(10^6) -> 0
B60: =IF('Biogas-to-RNG'!B34=0, " ",'Biogas-to-RNG'!B34) ->  | I60: =((D60*E60+C60)*F60)*0.0423*0.000454+G60*H60*Reference!$E$16/(10^6) -> 0
B61: =IF('Biogas-to-RNG'!B35=0, " ",'Biogas-to-RNG'!B35) ->  | I61: =((D61*E61+C61)*F61)*0.0423*0.000454+G61*H61*Reference!$E$16/(10^6) -> 0
B62: =IF('Biogas-to-RNG'!B36=0, " ",'Biogas-to-RNG'!B36) ->  | I62: =((D62*E62+C62)*F62)*0.0423*0.000454+G62*H62*Reference!$E$16/(10^6) -> 0
B63: =IF('Biogas-to-RNG'!B37=0, " ",'Biogas-to-RNG'!B37) ->  | I63: =((D63*E63+C63)*F63)*0.0423*0.000454+G63*H63*Reference!$E$16/(10^6) -> 0
B64: =IF('Biogas-to-RNG'!B38=0, " ",'Biogas-to-RNG'!B38) ->  | I64: =((D64*E64+C64)*F64)*0.0423*0.000454+G64*H64*Reference!$E$16/(10^6) -> 0
B65: =IF('Biogas-to-RNG'!B39=0, " ",'Biogas-to-RNG'!B39) ->  | I65: =((D65*E65+C65)*F65)*0.0423*0.000454+G65*H65*Reference!$E$16/(10^6) -> 0
B66: =IF('Biogas-to-RNG'!B40=0, " ",'Biogas-to-RNG'!B40) ->  | I66: =((D66*E66+C66)*F66)*0.0423*0.000454+G66*H66*Reference!$E$16/(10^6) -> 0
B67: =IF('Biogas-to-RNG'!B41=0, " ",'Biogas-to-RNG'!B41) ->  | I67: =((D67*E67+C67)*F67)*0.0423*0.000454+G67*H67*Reference!$E$16/(10^6) -> 0
B68: =IF('Biogas-to-RNG'!B42=0, " ",'Biogas-to-RNG'!B42) ->  | I68: =((D68*E68+C68)*F68)*0.0423*0.000454+G68*H68*Reference!$E$16/(10^6) -> 0
B69: =IF('Biogas-to-RNG'!B43=0, " ",'Biogas-to-RNG'!B43) ->  | I69: =((D69*E69+C69)*F69)*0.0423*0.000454+G69*H69*Reference!$E$16/(10^6) -> 0
B70: =IF('Biogas-to-RNG'!B44=0, " ",'Biogas-to-RNG'!B44) ->  | I70: =((D70*E70+C70)*F70)*0.0423*0.000454+G70*H70*Reference!$E$16/(10^6) -> 0
B71: =IF('Biogas-to-RNG'!B45=0, " ",'Biogas-to-RNG'!B45) ->  | I71: =((D71*E71+C71)*F71)*0.0423*0.000454+G71*H71*Reference!$E$16/(10^6) -> 0
B72: =IF('Biogas-to-RNG'!B46=0, " ",'Biogas-to-RNG'!B46) ->  | I72: =((D72*E72+C72)*F72)*0.0423*0.000454+G72*H72*Reference!$E$16/(10^6) -> 0
B73: =IF('Biogas-to-RNG'!B47=0, " ",'Biogas-to-RNG'!B47) ->  | I73: =((D73*E73+C73)*F73)*0.0423*0.000454+G73*H73*Reference!$E$16/(10^6) -> 0
B74: =IF('Biogas-to-RNG'!B48=0, " ",'Biogas-to-RNG'!B48) ->  | I74: =((D74*E74+C74)*F74)*0.0423*0.000454+G74*H74*Reference!$E$16/(10^6) -> 0
B75: =IF('Biogas-to-RNG'!B49=0, " ",'Biogas-to-RNG'!B49) ->  | I75: =((D75*E75+C75)*F75)*0.0423*0.000454+G75*H75*Reference!$E$16/(10^6) -> 0
B76: =IF('Biogas-to-RNG'!B50=0, " ",'Biogas-to-RNG'!B50) ->  | I76: =((D76*E76+C76)*F76)*0.0423*0.000454+G76*H76*Reference!$E$16/(10^6) -> 0
B77: =IF('Biogas-to-RNG'!B51=0, " ",'Biogas-to-RNG'!B51) ->  | I77: =((D77*E77+C77)*F77)*0.0423*0.000454+G77*H77*Reference!$E$16/(10^6) -> 0
B78: Total | I78: =SUM(I54:I77) -> 0
B81: Section L4: Project Methane Emissions from the BCS Effluent Pond(s) (PECH4,EP) (Reference: [Equation 5.8 in LOP])
B82: L4.1 Livestock Category | C82: L4.2 Average Population | D82: L4.3 Livestock Excretion Rate | E82: L4.4 Maximum CH4 Potential | F82: L4.5 Fraction of Volatile Solids Sent to BCS System | G82: L4.6 Fraction of Volatile Solids Removed before Effluent is Sent to Effluent Ponds | H82: L4.7 Methane Potential of the VS to Effluent Ponds | I82: L4.8 Number of Reporting Days | J82: L4.9 Methane Conversion Factor | K82: L4.10 Project Methane Emission from Effluent Ponds
B83: L | C83: PL | D83: VSL (dry kg/animal/day) | E83: Bo,L (m3 CH4/kg VS) | F83: MSL,BCS (fraction) | G83: % | H83: VSep,L (m3 CH4/day) | I83: RDrp (days) | J83: MCFep (fraction) | K83: PECH4,EP (MT CH4)
B84: =B7 -> - | C84: =IFERROR(IF(B7="-", 0, SUMPRODUCT(D9:D32,F9:F32)/SUM(F9:F32)),0) -> 0 | D84: =B20 -> 0 | E84: =B16 -> 0 | H84: =C84*D84*E84*F84*(1-G84)*0.3 -> 0 | I84: =SUM(F9:F32) -> 0 | J84: =IFERROR(HLOOKUP('Biogas-to-RNG'!F20,Reference!A168:T174,7,FALSE),"") ->  | K84: =IFERROR(SUM(H84:H89)*I84*0.68*J84*0.001,"") -> 
B85: =P7 -> - | C85: =IFERROR(IF(P7="-", 0, SUMPRODUCT(R9:R32,T9:T32)/SUM(T9:T32)),0) -> 0 | D85: =P20 -> 0 | E85: =P16 -> 0 | H85: =C85*D85*E85*F85*(1-G85)*0.3 -> 0
B86: =AD7 -> - | C86: =IFERROR(IF(AD7="-", 0, SUMPRODUCT(AF9:AF32,AH9:AH32)/SUM(AH9:AH32)),0) -> 0 | D86: =AD20 -> 0 | E86: =AD16 -> 0 | H86: 0
B87: =AR7 -> - | C87: =IFERROR(IF(AR7="-", 0, SUMPRODUCT(AT9:AT32,AV9:AV32)/SUM(AV9:AV32)),0) -> 0 | D87: =AR20 -> 0 | E87: =AR16 -> 0 | H87: 0
B88: =BF7 -> - | C88: =IFERROR(IF(BF7="-", 0, SUMPRODUCT(BH9:BH32,BJ9:BJ32)/SUM(BJ9:BJ32)),0) -> 0 | D88: =BF20 -> 0 | E88: =BF16 -> 0 | H88: 0
B89: =BT7 -> - | C89: =IFERROR(IF(BT7="-", 0, SUMPRODUCT(BV9:BV32,BX9:BX32)/SUM(BX9:BX32)),0) -> 0 | D89: =BT20 -> 0 | E89: =BT16 -> 0 | H89: 0
B92: Section L5: Project Methane Emissions from Non-BCS Related Sources (PECH4,nBCS) (Reference: [Equation 5.9 in LOP])
C93: L5.2 Methane Conversion Factor (MCFS, fraction) | D93: L5.3 Manure/Effluent Managed in Non-BCS (Other) Systems (MSL,S, fraction)
B94: Livestock Category (L) | D94: =$B$7 -> - | E94: =$P$7 -> - | F94: =$AD$7 -> - | G94: =$AR$7 -> - | H94: =$BF$7 -> - | I94: =$BT$7 -> -
B95: L5.1.a Non-BCS Storage/Treatment Systems for Manure
B96: ~~Select Storage/Treatment~~ | C96: =IFERROR(IF(B96>0, VLOOKUP(B96, Reference!$A$168:$T$184, MATCH('Biogas-to-RNG'!$F$20, Reference!$A$168:$T$168), FALSE),0),0) -> 0
B97: ~~Select Storage/Treatment~~ | C97: =IFERROR(IF(B97>0, VLOOKUP(B97, Reference!$A$168:$T$184, MATCH('Biogas-to-RNG'!$F$20, Reference!$A$168:$T$168), FALSE),0),0) -> 0
B98: ~~Select Storage/Treatment~~ | C98: =IFERROR(IF(B98>0, VLOOKUP(B98, Reference!$A$168:$T$184, MATCH('Biogas-to-RNG'!$F$20, Reference!$A$168:$T$168), FALSE),0),0) -> 0
B99: ~~Select Storage/Treatment~~ | C99: =IFERROR(IF(B99>0, VLOOKUP(B99, Reference!$A$168:$T$184, MATCH('Biogas-to-RNG'!$F$20, Reference!$A$168:$T$168), FALSE),0),0) -> 0
B100: ~~Select Storage/Treatment~~ | C100: =IFERROR(IF(B100>0, VLOOKUP(B100, Reference!$A$168:$T$184, MATCH('Biogas-to-RNG'!$F$20, Reference!$A$168:$T$168), FALSE),0),0) -> 0
B101: L5.1.b Other Storage/Treatment Systems for Effluent
B102: ~~Select Storage/Treatment~~ | C102: =IFERROR(IF(B102>0, VLOOKUP(B102, Reference!$A$168:$T$184, MATCH('Biogas-to-RNG'!$F$20, Reference!$A$168:$T$168), FALSE),0),0) -> 0
B103: ~~Select Storage/Treatment~~ | C103: =IFERROR(IF(B103>0, VLOOKUP(B103, Reference!$A$168:$T$184, MATCH('Biogas-to-RNG'!$F$20, Reference!$A$168:$T$168), FALSE),0),0) -> 0
B104: ~~Select Storage/Treatment~~ | C104: =IFERROR(IF(B104>0, VLOOKUP(B104, Reference!$A$168:$T$184, MATCH('Biogas-to-RNG'!$F$20, Reference!$A$168:$T$168), FALSE),0),0) -> 0
B105: ~~Select Storage/Treatment~~ | C105: =IFERROR(IF(B105>0, VLOOKUP(B105, Reference!$A$168:$T$184, MATCH('Biogas-to-RNG'!$F$20, Reference!$A$168:$T$168), FALSE),0),0) -> 0
B106: ~~Select Storage/Treatment~~ | C106: =IFERROR(IF(B106>0, VLOOKUP(B106, Reference!$A$168:$T$184, MATCH('Biogas-to-RNG'!$F$20, Reference!$A$168:$T$168), FALSE),0),0) -> 0
B107: L5.4 CH4 Emission Factor, non-BCS (EFCH4,L,nBCSs , kg CH4/head) | D107: =($D$84*$E$84*$I$84*0.68)*SUMPRODUCT($C$96:$C$106,D96:D106) -> 0 | E107: =($D$85*$E$85*$I$84*0.68)*SUMPRODUCT($C$96:$C$106,E96:E106) -> 0 | F107: =($D$86*$E$86*$I$84*0.68)*SUMPRODUCT($C$96:$C$106,F96:F106) -> 0 | G107: =($D$87*$E$87*$I$84*0.68)*SUMPRODUCT($C$96:$C$106,G96:G106) -> 0 | H107: =($D$88*$E$88*$I$84*0.68)*SUMPRODUCT($C$96:$C$106,H96:H106) -> 0 | I107: =($D$89*$E$89*$I$84*0.68)*SUMPRODUCT($C$96:$C$106,I96:I106) -> 0 | J107: Total (PECH4,non-BCS , MT CH4)
B108: L5.5 Project Methane Emissions, non-BSC (PECH4,L,nBCS , MT CH4) | D108: =D107*$C$84*0.001 -> 0 | E108: =E107*$C$85*0.001 -> 0 | F108: =F107*$C$86*0.001 -> 0 | G108: =G107*$C$87*0.001 -> 0 | H108: =H107*$C$88*0.001 -> 0 | I108: =I107*$C$89*0.001 -> 0 | J108: =SUM(D108:I108) -> 0

Sheet Avoided Emissions
C1: Calculations of the Avoided Emissions
B3: Section P1. Results from the "Manure-to-Biogas (LOP Inputs)" tab
B4: P1.1 Select Digester Type | C4: Covered Lagoon
B5: P1.2 Reporting Month (MM/YYYY) | C5: P1.3 Baseline methane emissions (BECH4 Mod) | D5: P1.4 Project methane emissions
D6: P1.4.a Venting methane (CH4 vent) | E6: P1.4.b Effluent ponds methane (PECH4,EP) | F6: P1.4.c Storage/Treatment methane (PECH4,nBCS) | G6: P1.4.d Digester leakage
C7: Metric Ton | D7: Metric Ton | E7: Metric Ton | F7: Metric Ton | G7: Metric Ton
B8: =IF('Manure-to-Biogas (LOP Inputs)'!C9=0, " ", 'Manure-to-Biogas (LOP Inputs)'!C9) ->  | C8: ='Manure-to-Biogas (LOP Inputs)'!N9+'Manure-to-Biogas (LOP Inputs)'!AB9+'Manure-to-Biogas (LOP Inputs)'!AP9+'Manure-to-Biogas (LOP Inputs)'!BD9+'Manure-to-Biogas (LOP Inputs)'!BR9+'Manure-to-Biogas (LOP Inputs)'!CF9 -> 0 | D8: ='Manure-to-Biogas (LOP Inputs)'!I54 -> 0 | G8: =(('Biogas-to-RNG'!C28*'Biogas-to-RNG'!D28)*Reference!$E$16/(10^6)/(IF('Avoided Emissions'!$C$4="Covered Lagoon",(100%-Reference!$D$107),(100%-Reference!$D$109))))-('Biogas-to-RNG'!C28*'Biogas-to-RNG'!D28*Reference!$E$16/10^6) -> 0
B9: =IF('Manure-to-Biogas (LOP Inputs)'!C10=0, " ", 'Manure-to-Biogas (LOP Inputs)'!C10) ->  | C9: ='Manure-to-Biogas (LOP Inputs)'!N10+'Manure-to-Biogas (LOP Inputs)'!AB10+'Manure-to-Biogas (LOP Inputs)'!AP10+'Manure-to-Biogas (LOP Inputs)'!BD10+'Manure-to-Biogas (LOP Inputs)'!BR10+'Manure-to-Biogas (LOP Inputs)'!CF10 -> 0 | D9: ='Manure-to-Biogas (LOP Inputs)'!I55 -> 0 | G9: =(('Biogas-to-RNG'!C29*'Biogas-to-RNG'!D29)*Reference!$E$16/(10^6)/(IF('Avoided Emissions'!$C$4="Covered Lagoon",(100%-Reference!$D$107),(100%-Reference!$D$109))))-('Biogas-to-RNG'!C29*'Biogas-to-RNG'!D29*Reference!$E$16/10^6) -> 0
B10: =IF('Manure-to-Biogas (LOP Inputs)'!C11=0, " ", 'Manure-to-Biogas (LOP Inputs)'!C11) ->  | C10: ='Manure-to-Biogas (LOP Inputs)'!N11+'Manure-to-Biogas (LOP Inputs)'!AB11+'Manure-to-Biogas (LOP Inputs)'!AP11+'Manure-to-Biogas (LOP Inputs)'!BD11+'Manure-to-Biogas (LOP Inputs)'!BR11+'Manure-to-Biogas (LOP Inputs)'!CF11 -> 0 | D10: ='Manure-to-Biogas (LOP Inputs)'!I56 -> 0 | G10: =(('Biogas-to-RNG'!C30*'Biogas-to-RNG'!D30)*Reference!$E$16/(10^6)/(IF('Avoided Emissions'!$C$4="Covered Lagoon",(100%-Reference!$D$107),(100%-Reference!$D$109))))-('Biogas-to-RNG'!C30*'Biogas-to-RNG'!D30*Reference!$E$16/10^6) -> 0
B11: =IF('Manure-to-Biogas (LOP Inputs)'!C12=0, " ", 'Manure-to-Biogas (LOP Inputs)'!C12) ->  | C11: ='Manure-to-Biogas (LOP Inputs)'!N12+'Manure-to-Biogas (LOP Inputs)'!AB12+'Manure-to-Biogas (LOP Inputs)'!AP12+'Manure-to-Biogas (LOP Inputs)'!BD12+'Manure-to-Biogas (LOP Inputs)'!BR12+'Manure-to-Biogas (LOP Inputs)'!CF12 -> 0 | D11: ='Manure-to-Biogas (LOP Inputs)'!I57 -> 0 | G11: =(('Biogas-to-RNG'!C31*'Biogas-to-RNG'!D31)*Reference!$E$16/(10^6)/(IF('Avoided Emissions'!$C$4="Covered Lagoon",(100%-Reference!$D$107),(100%-Reference!$D$109))))-('Biogas-to-RNG'!C31*'Biogas-to-RNG'!D31*Reference!$E$16/10^6) -> 0
B12: =IF('Manure-to-Biogas (LOP Inputs)'!C13=0, " ", 'Manure-to-Biogas (LOP Inputs)'!C13) ->  | C12: ='Manure-to-Biogas (LOP Inputs)'!N13+'Manure-to-Biogas (LOP Inputs)'!AB13+'Manure-to-Biogas (LOP Inputs)'!AP13+'Manure-to-Biogas (LOP Inputs)'!BD13+'Manure-to-Biogas (LOP Inputs)'!BR13+'Manure-to-Biogas (LOP Inputs)'!CF13 -> 0 | D12: ='Manure-to-Biogas (LOP Inputs)'!I58 -> 0 | G12: =(('Biogas-to-RNG'!C32*'Biogas-to-RNG'!D32)*Reference!$E$16/(10^6)/(IF('Avoided Emissions'!$C$4="Covered Lagoon",(100%-Reference!$D$107),(100%-Reference!$D$109))))-('Biogas-to-RNG'!C32*'Biogas-to-RNG'!D32*Reference!$E$16/10^6) -> 0
B13: =IF('Manure-to-Biogas (LOP Inputs)'!C14=0, " ", 'Manure-to-Biogas (LOP Inputs)'!C14) ->  | C13: ='Manure-to-Biogas (LOP Inputs)'!N14+'Manure-to-Biogas (LOP Inputs)'!AB14+'Manure-to-Biogas (LOP Inputs)'!AP14+'Manure-to-Biogas (LOP Inputs)'!BD14+'Manure-to-Biogas (LOP Inputs)'!BR14+'Manure-to-Biogas (LOP Inputs)'!CF14 -> 0 | D13: ='Manure-to-Biogas (LOP Inputs)'!I59 -> 0 | G13: =(('Biogas-to-RNG'!C33*'Biogas-to-RNG'!D33)*Reference!$E$16/(10^6)/(IF('Avoided Emissions'!$C$4="Covered Lagoon",(100%-Reference!$D$107),(100%-Reference!$D$109))))-('Biogas-to-RNG'!C33*'Biogas-to-RNG'!D33*Reference!$E$16/10^6) -> 0
B14: =IF('Manure-to-Biogas (LOP Inputs)'!C15=0, " ", 'Manure-to-Biogas (LOP Inputs)'!C15) ->  | C14: ='Manure-to-Biogas (LOP Inputs)'!N15+'Manure-to-Biogas (LOP Inputs)'!AB15+'Manure-to-Biogas (LOP Inputs)'!AP15+'Manure-to-Biogas (LOP Inputs)'!BD15+'Manure-to-Biogas (LOP Inputs)'!BR15+'Manure-to-Biogas (LOP Inputs)'!CF15 -> 0 | D14: ='Manure-to-Biogas (LOP Inputs)'!I60 -> 0 | G14: =(('Biogas-to-RNG'!C34*'Biogas-to-RNG'!D34)*Reference!$E$16/(10^6)/(IF('Avoided Emissions'!$C$4="Covered Lagoon",(100%-Reference!$D$107),(100%-Reference!$D$109))))-('Biogas-to-RNG'!C34*'Biogas-to-RNG'!D34*Reference!$E$16/10^6) -> 0
B15: =IF('Manure-to-Biogas (LOP Inputs)'!C16=0, " ", 'Manure-to-Biogas (LOP Inputs)'!C16) ->  | C15: ='Manure-to-Biogas (LOP Inputs)'!N16+'Manure-to-Biogas (LOP Inputs)'!AB16+'Manure-to-Biogas (LOP Inputs)'!AP16+'Manure-to-Biogas (LOP Inputs)'!BD16+'Manure-to-Biogas (LOP Inputs)'!BR16+'Manure-to-Biogas (LOP Inputs)'!CF16 -> 0 | D15: ='Manure-to-Biogas (LOP Inputs)'!I61 -> 0 | G15: =(('Biogas-to-RNG'!C35*'Biogas-to-RNG'!D35)*Reference!$E$16/(10^6)/(IF('Avoided Emissions'!$C$4="Covered Lagoon",(100%-Reference!$D$107),(100%-Reference!$D$109))))-('Biogas-to-RNG'!C35*'Biogas-to-RNG'!D35*Reference!$E$16/10^6) -> 0
B16: =IF('Manure-to-Biogas (LOP Inputs)'!C17=0, " ", 'Manure-to-Biogas (LOP Inputs)'!C17) ->  | C16: ='Manure-to-Biogas (LOP Inputs)'!N17+'Manure-to-Biogas (LOP Inputs)'!AB17+'Manure-to-Biogas (LOP Inputs)'!AP17+'Manure-to-Biogas (LOP Inputs)'!BD17+'Manure-to-Biogas (LOP Inputs)'!BR17+'Manure-to-Biogas (LOP Inputs)'!CF17 -> 0 | D16: ='Manure-to-Biogas (LOP Inputs)'!I62 -> 0 | G16: =(('Biogas-to-RNG'!C36*'Biogas-to-RNG'!D36)*Reference!$E$16/(10^6)/(IF('Avoided Emissions'!$C$4="Covered Lagoon",(100%-Reference!$D$107),(100%-Reference!$D$109))))-('Biogas-to-RNG'!C36*'Biogas-to-RNG'!D36*Reference!$E$16/10^6) -> 0
B17: =IF('Manure-to-Biogas (LOP Inputs)'!C18=0, " ", 'Manure-to-Biogas (LOP Inputs)'!C18) ->  | C17: ='Manure-to-Biogas (LOP Inputs)'!N18+'Manure-to-Biogas (LOP Inputs)'!AB18+'Manure-to-Biogas (LOP Inputs)'!AP18+'Manure-to-Biogas (LOP Inputs)'!BD18+'Manure-to-Biogas (LOP Inputs)'!BR18+'Manure-to-Biogas (LOP Inputs)'!CF18 -> 0 | D17: ='Manure-to-Biogas (LOP Inputs)'!I63 -> 0 | G17: =(('Biogas-to-RNG'!C37*'Biogas-to-RNG'!D37)*Reference!$E$16/(10^6)/(IF('Avoided Emissions'!$C$4="Covered Lagoon",(100%-Reference!$D$107),(100%-Reference!$D$109))))-('Biogas-to-RNG'!C37*'Biogas-to-RNG'!D37*Reference!$E$16/10^6) -> 0
B18: =IF('Manure-to-Biogas (LOP Inputs)'!C19=0, " ", 'Manure-to-Biogas (LOP Inputs)'!C19) ->  | C18: ='Manure-to-Biogas (LOP Inputs)'!N19+'Manure-to-Biogas (LOP Inputs)'!AB19+'Manure-to-Biogas (LOP Inputs)'!AP19+'Manure-to-Biogas (LOP Inputs)'!BD19+'Manure-to-Biogas (LOP Inputs)'!BR19+'Manure-to-Biogas (LOP Inputs)'!CF19 -> 0 | D18: ='Manure-to-Biogas (LOP Inputs)'!I64 -> 0 | G18: =(('Biogas-to-RNG'!C38*'Biogas-to-RNG'!D38)*Reference!$E$16/(10^6)/(IF('Avoided Emissions'!$C$4="Covered Lagoon",(100%-Reference!$D$107),(100%-Reference!$D$109))))-('Biogas-to-RNG'!C38*'Biogas-to-RNG'!D38*Reference!$E$16/10^6) -> 0
B19: =IF('Manure-to-Biogas (LOP Inputs)'!C20=0, " ", 'Manure-to-Biogas (LOP Inputs)'!C20) ->  | C19: ='Manure-to-Biogas (LOP Inputs)'!N20+'Manure-to-Biogas (LOP Inputs)'!AB20+'Manure-to-Biogas (LOP Inputs)'!AP20+'Manure-to-Biogas (LOP Inputs)'!BD20+'Manure-to-Biogas (LOP Inputs)'!BR20+'Manure-to-Biogas (LOP Inputs)'!CF20 -> 0 | D19: ='Manure-to-Biogas (LOP Inputs)'!I65 -> 0 | G19: =(('Biogas-to-RNG'!C39*'Biogas-to-RNG'!D39)*Reference!$E$16/(10^6)/(IF('Avoided Emissions'!$C$4="Covered Lagoon",(100%-Reference!$D$107),(100%-Reference!$D$109))))-('Biogas-to-RNG'!C39*'Biogas-to-RNG'!D39*Reference!$E$16/10^6) -> 0
B20: =IF('Manure-to-Biogas (LOP Inputs)'!C21=0, " ", 'Manure-to-Biogas (LOP Inputs)'!C21) ->  | C20: ='Manure-to-Biogas (LOP Inputs)'!N21+'Manure-to-Biogas (LOP Inputs)'!AB21+'Manure-to-Biogas (LOP Inputs)'!AP21+'Manure-to-Biogas (LOP Inputs)'!BD21+'Manure-to-Biogas (LOP Inputs)'!BR21+'Manure-to-Biogas (LOP Inputs)'!CF21 -> 0 | D20: ='Manure-to-Biogas (LOP Inputs)'!I66 -> 0 | G20: =(('Biogas-to-RNG'!C40*'Biogas-to-RNG'!D40)*Reference!$E$16/(10^6)/(IF('Avoided Emissions'!$C$4="Covered Lagoon",(100%-Reference!$D$107),(100%-Reference!$D$109))))-('Biogas-to-RNG'!C40*'Biogas-to-RNG'!D40*Reference!$E$16/10^6) -> 0
B21: =IF('Manure-to-Biogas (LOP Inputs)'!C22=0, " ", 'Manure-to-Biogas (LOP Inputs)'!C22) ->  | C21: ='Manure-to-Biogas (LOP Inputs)'!N22+'Manure-to-Biogas (LOP Inputs)'!AB22+'Manure-to-Biogas (LOP Inputs)'!AP22+'Manure-to-Biogas (LOP Inputs)'!BD22+'Manure-to-Biogas (LOP Inputs)'!BR22+'Manure-to-Biogas (LOP Inputs)'!CF22 -> 0 | D21: ='Manure-to-Biogas (LOP Inputs)'!I67 -> 0 | G21: =(('Biogas-to-RNG'!C41*'Biogas-to-RNG'!D41)*Reference!$E$16/(10^6)/(IF('Avoided Emissions'!$C$4="Covered Lagoon",(100%-Reference!$D$107),(100%-Reference!$D$109))))-('Biogas-to-RNG'!C41*'Biogas-to-RNG'!D41*Reference!$E$16/10^6) -> 0
B22: =IF('Manure-to-Biogas (LOP Inputs)'!C23=0, " ", 'Manure-to-Biogas (LOP Inputs)'!C23) ->  | C22: ='Manure-to-Biogas (LOP Inputs)'!N23+'Manure-to-Biogas (LOP Inputs)'!AB23+'Manure-to-Biogas (LOP Inputs)'!AP23+'Manure-to-Biogas (LOP Inputs)'!BD23+'Manure-to-Biogas (LOP Inputs)'!BR23+'Manure-to-Biogas (LOP Inputs)'!CF23 -> 0 | D22: ='Manure-to-Biogas (LOP Inputs)'!I68 -> 0 | G22: =(('Biogas-to-RNG'!C42*'Biogas-to-RNG'!D42)*Reference!$E$16/(10^6)/(IF('Avoided Emissions'!$C$4="Covered Lagoon",(100%-Reference!$D$107),(100%-Reference!$D$109))))-('Biogas-to-RNG'!C42*'Biogas-to-RNG'!D42*Reference!$E$16/10^6) -> 0
B23: =IF('Manure-to-Biogas (LOP Inputs)'!C24=0, " ", 'Manure-to-Biogas (LOP Inputs)'!C24) ->  | C23: ='Manure-to-Biogas (LOP Inputs)'!N24+'Manure-to-Biogas (LOP Inputs)'!AB24+'Manure-to-Biogas (LOP Inputs)'!AP24+'Manure-to-Biogas (LOP Inputs)'!BD24+'Manure-to-Biogas (LOP Inputs)'!BR24+'Manure-to-Biogas (LOP Inputs)'!CF24 -> 0 | D23: ='Manure-to-Biogas (LOP Inputs)'!I69 -> 0 | G23: =(('Biogas-to-RNG'!C43*'Biogas-to-RNG'!D43)*Reference!$E$16/(10^6)/(IF('Avoided Emissions'!$C$4="Covered Lagoon",(100%-Reference!$D$107),(100%-Reference!$D$109))))-('Biogas-to-RNG'!C43*'Biogas-to-RNG'!D43*Reference!$E$16/10^6) -> 0
B24: =IF('Manure-to-Biogas (LOP Inputs)'!C25=0, " ", 'Manure-to-Biogas (LOP Inputs)'!C25) ->  | C24: ='Manure-to-Biogas (LOP Inputs)'!N25+'Manure-to-Biogas (LOP Inputs)'!AB25+'Manure-to-Biogas (LOP Inputs)'!AP25+'Manure-to-Biogas (LOP Inputs)'!BD25+'Manure-to-Biogas (LOP Inputs)'!BR25+'Manure-to-Biogas (LOP Inputs)'!CF25 -> 0 | D24: ='Manure-to-Biogas (LOP Inputs)'!I70 -> 0 | G24: =(('Biogas-to-RNG'!C44*'Biogas-to-RNG'!D44)*Reference!$E$16/(10^6)/(IF('Avoided Emissions'!$C$4="Covered Lagoon",(100%-Reference!$D$107),(100%-Reference!$D$109))))-('Biogas-to-RNG'!C44*'Biogas-to-RNG'!D44*Reference!$E$16/10^6) -> 0
B25: =IF('Manure-to-Biogas (LOP Inputs)'!C26=0, " ", 'Manure-to-Biogas (LOP Inputs)'!C26) ->  | C25: ='Manure-to-Biogas (LOP Inputs)'!N26+'Manure-to-Biogas (LOP Inputs)'!AB26+'Manure-to-Biogas (LOP Inputs)'!AP26+'Manure-to-Biogas (LOP Inputs)'!BD26+'Manure-to-Biogas (LOP Inputs)'!BR26+'Manure-to-Biogas (LOP Inputs)'!CF26 -> 0 | D25: ='Manure-to-Biogas (LOP Inputs)'!I71 -> 0 | G25: =(('Biogas-to-RNG'!C45*'Biogas-to-RNG'!D45)*Reference!$E$16/(10^6)/(IF('Avoided Emissions'!$C$4="Covered Lagoon",(100%-Reference!$D$107),(100%-Reference!$D$109))))-('Biogas-to-RNG'!C45*'Biogas-to-RNG'!D45*Reference!$E$16/10^6) -> 0
B26: =IF('Manure-to-Biogas (LOP Inputs)'!C27=0, " ", 'Manure-to-Biogas (LOP Inputs)'!C27) ->  | C26: ='Manure-to-Biogas (LOP Inputs)'!N27+'Manure-to-Biogas (LOP Inputs)'!AB27+'Manure-to-Biogas (LOP Inputs)'!AP27+'Manure-to-Biogas (LOP Inputs)'!BD27+'Manure-to-Biogas (LOP Inputs)'!BR27+'Manure-to-Biogas (LOP Inputs)'!CF27 -> 0 | D26: ='Manure-to-Biogas (LOP Inputs)'!I72 -> 0 | G26: =(('Biogas-to-RNG'!C46*'Biogas-to-RNG'!D46)*Reference!$E$16/(10^6)/(IF('Avoided Emissions'!$C$4="Covered Lagoon",(100%-Reference!$D$107),(100%-Reference!$D$109))))-('Biogas-to-RNG'!C46*'Biogas-to-RNG'!D46*Reference!$E$16/10^6) -> 0
B27: =IF('Manure-to-Biogas (LOP Inputs)'!C28=0, " ", 'Manure-to-Biogas (LOP Inputs)'!C28) ->  | C27: ='Manure-to-Biogas (LOP Inputs)'!N28+'Manure-to-Biogas (LOP Inputs)'!AB28+'Manure-to-Biogas (LOP Inputs)'!AP28+'Manure-to-Biogas (LOP Inputs)'!BD28+'Manure-to-Biogas (LOP Inputs)'!BR28+'Manure-to-Biogas (LOP Inputs)'!CF28 -> 0 | D27: ='Manure-to-Biogas (LOP Inputs)'!I73 -> 0 | G27: =(('Biogas-to-RNG'!C47*'Biogas-to-RNG'!D47)*Reference!$E$16/(10^6)/(IF('Avoided Emissions'!$C$4="Covered Lagoon",(100%-Reference!$D$107),(100%-Reference!$D$109))))-('Biogas-to-RNG'!C47*'Biogas-to-RNG'!D47*Reference!$E$16/10^6) -> 0
B28: =IF('Manure-to-Biogas (LOP Inputs)'!C29=0, " ", 'Manure-to-Biogas (LOP Inputs)'!C29) ->  | C28: ='Manure-to-Biogas (LOP Inputs)'!N29+'Manure-to-Biogas (LOP Inputs)'!AB29+'Manure-to-Biogas (LOP Inputs)'!AP29+'Manure-to-Biogas (LOP Inputs)'!BD29+'Manure-to-Biogas (LOP Inputs)'!BR29+'Manure-to-Biogas (LOP Inputs)'!CF29 -> 0 | D28: ='Manure-to-Biogas (LOP Inputs)'!I74 -> 0 | G28: =(('Biogas-to-RNG'!C48*'Biogas-to-RNG'!D48)*Reference!$E$16/(10^6)/(IF('Avoided Emissions'!$C$4="Covered Lagoon",(100%-Reference!$D$107),(100%-Reference!$D$109))))-('Biogas-to-RNG'!C48*'Biogas-to-RNG'!D48*Reference!$E$16/10^6) -> 0
B29: =IF('Manure-to-Biogas (LOP Inputs)'!C30=0, " ", 'Manure-to-Biogas (LOP Inputs)'!C30) ->  | C29: ='Manure-to-Biogas (LOP Inputs)'!N30+'Manure-to-Biogas (LOP Inputs)'!AB30+'Manure-to-Biogas (LOP Inputs)'!AP30+'Manure-to-Biogas (LOP Inputs)'!BD30+'Manure-to-Biogas (LOP Inputs)'!BR30+'Manure-to-Biogas (LOP Inputs)'!CF30 -> 0 | D29: ='Manure-to-Biogas (LOP Inputs)'!I75 -> 0 | G29: =(('Biogas-to-RNG'!C49*'Biogas-to-RNG'!D49)*Reference!$E$16/(10^6)/(IF('Avoided Emissions'!$C$4="Covered Lagoon",(100%-Reference!$D$107),(100%-Reference!$D$109))))-('Biogas-to-RNG'!C49*'Biogas-to-RNG'!D49*Reference!$E$16/10^6) -> 0
B30: =IF('Manure-to-Biogas (LOP Inputs)'!C31=0, " ", 'Manure-to-Biogas (LOP Inputs)'!C31) ->  | C30: ='Manure-to-Biogas (LOP Inputs)'!N31+'Manure-to-Biogas (LOP Inputs)'!AB31+'Manure-to-Biogas (LOP Inputs)'!AP31+'Manure-to-Biogas (LOP Inputs)'!BD31+'Manure-to-Biogas (LOP Inputs)'!BR31+'Manure-to-Biogas (LOP Inputs)'!CF31 -> 0 | D30: ='Manure-to-Biogas (LOP Inputs)'!I76 -> 0 | G30: =(('Biogas-to-RNG'!C50*'Biogas-to-RNG'!D50)*Reference!$E$16/(10^6)/(IF('Avoided Emissions'!$C$4="Covered Lagoon",(100%-Reference!$D$107),(100%-Reference!$D$109))))-('Biogas-to-RNG'!C50*'Biogas-to-RNG'!D50*Reference!$E$16/10^6) -> 0
B31: =IF('Manure-to-Biogas (LOP Inputs)'!C32=0, " ", 'Manure-to-Biogas (LOP Inputs)'!C32) ->  | C31: ='Manure-to-Biogas (LOP Inputs)'!N32+'Manure-to-Biogas (LOP Inputs)'!AB32+'Manure-to-Biogas (LOP Inputs)'!AP32+'Manure-to-Biogas (LOP Inputs)'!BD32+'Manure-to-Biogas (LOP Inputs)'!BR32+'Manure-to-Biogas (LOP Inputs)'!CF32 -> 0 | D31: ='Manure-to-Biogas (LOP Inputs)'!I77 -> 0 | G31: =(('Biogas-to-RNG'!C51*'Biogas-to-RNG'!D51)*Reference!$E$16/(10^6)/(IF('Avoided Emissions'!$C$4="Covered Lagoon",(100%-Reference!$D$107),(100%-Reference!$D$109))))-('Biogas-to-RNG'!C51*'Biogas-to-RNG'!D51*Reference!$E$16/10^6) -> 0
B32: Monthly Average | C32: =IFERROR(SUM(C8:C31)/'Manure-to-Biogas (LOP Inputs)'!B9+'Manure-to-Biogas (LOP Inputs)'!J47/'Manure-to-Biogas (LOP Inputs)'!B9, 0) -> 0 | D32: =IFERROR(SUM(D8:D31)/'Biogas-to-RNG'!J24,0) -> 0 | E32: =IFERROR('Manure-to-Biogas (LOP Inputs)'!K84/'Manure-to-Biogas (LOP Inputs)'!B9,0) -> 0 | F32: =IFERROR('Manure-to-Biogas (LOP Inputs)'!J108/'Manure-to-Biogas (LOP Inputs)'!B9,0) -> 0 | G32: =IFERROR(SUM(G8:G31)/'Biogas-to-RNG'!J24,0) -> 0
B35: Section P2. Avoided CH4 Emissions Calculation Detail | F35: Section P3. Avoided CO2 Emissions Calculation Detail
C36: Value | D36: Unit (of Methane) | G36: Value | H36: Unit
B37: Subtotal Project Methane emissions (Calculation) | C37: =(D32+E32+F32+G32)*'Biogas-to-RNG'!J24 -> 0 | D37: MT CH4 | F37: Avoided CO2 | G37: =IF((-C38=C40),0,-(C40+C37-C32*'Biogas-to-RNG'!J24)*(44/16)) -> 0 | H37: MT CO2
B38: Net methane emissions avoided (Calculation) | C38: =IF((C37-C32*'Biogas-to-RNG'!J24)<(C40*-1),(C40*-1),(C37-C32*'Biogas-to-RNG'!J24)) -> 0 | D38: MT CH4 | F38: This is avoided emissions from carbon that would not convert to CH4 but CO2 in the baseline case. This carbon would release as CH4 in the project scenario. (Excess CH4 x 44 g/mol CO2:16 g/mol CH4)
B39: Metered Methane Quantities (project monitoring parameter, metered)
B40: Total methane produced from digester (metered) | C40: ='Biogas-to-RNG'!C52*'Biogas-to-RNG'!D52*Reference!$E$16/1000000 -> 0 | D40: MT CH4
B41: Methane at inlet to cleanup/upgrading facility | C41: ='Biogas-to-RNG'!G52*'Biogas-to-RNG'!H52*Reference!$E$16/1000000 -> 0 | D41: MT CH4
B42: Directly flared biogas (excluded from LCFS pathway system boundary) | C42: =C40-C41 -> 0 | D42: MT CH4
B43: Biomethane Sales Gas (delivered to pipeline/qualifying end use) | C43: ='Biogas-to-RNG'!AD52/Reference!$D$16*Reference!$E$16 -> 0 | D43: MT CH4
B44: RNG in tail gas flared (from upgrading) | C44: ='Biogas-to-RNG'!AC53*Reference!$E$16/1000000 -> 0 | D44: MT CH4
B45: RNG associated with onsite electricity production | C45: ='Biogas-to-RNG'!AE52/Reference!D16*Reference!E16 -> 0 | D45: MT CH4
B46: Avoided Methane and CO2 calculations
B47: % alloc. factor for CH4 avoided - RNG (vehicle use) | C47: =IFERROR((C41-C45*IF('Biogas-to-RNG'!AF52=0, 0, 'Biogas-to-RNG'!AG52/'Biogas-to-RNG'!AF52))/(C40),0) -> 0 | D47: %
B48: % alloc. factor for diverted CO2 - RNG | C48: =C47 -> 0 | D48: %
B49: Net CH4 avoided, allocated to RNG | C49: =C38*C47 -> 0 | D49: MT CH4
B50: Net allocated MT CH4 avoided per MT RNG | C50: =IFERROR(C49/C43,0) -> 0 | D50: MT avoided/MT produced | F50: Diverted CO2 allocated to RNG (vehicle use) | G50: =G37*C48 -> 0 | H50: MT CO2
B51: Avoided (g CH4) per MJ RNG | C51: =C50*1000000/Reference!B16*Reference!E16/Reference!H45 -> 0 | D51: g CH4/MJ | F51: Diverted CO2 emissions from land application | G51: =IFERROR(G50/C43,0) -> 0 | H51: MT CO2/MT CH4 produced
B52: Avoided (g CO2e) per RNG output: | C52: =IFERROR(C51*Reference!B20,0) -> 0 | D52: g CO2e/MJ | G52: =IFERROR(G51*1000000/Reference!B16*Reference!E16/Reference!H45,0) -> 0 | H52: g CO2e/MJ

Sheet Biogas-to-RNG
C5: Tier 1 CI Calculator for Dairy and Swine Manure Biomethane
B9: Pathway Summary and Estimated CI (g/MJ)
B10: CNG CI | C10: =G97 -> 0 | D10: =CONCATENATE("Pathway Description: RNG produced from livestock manure, pipelined to ",F15, " for Compressed Natural Gas") -> Pathway Description: RNG produced from livestock manure, pipelined to for Compressed Natural Gas
B11: LNG CI | C11: =G98 -> 0 | D11: =CONCATENATE("Pathway Description: RNG produced from livestock manure, pipelined to ",C20, " for liquefaction, then transported by truck to Oregon LNG stations") -> Pathway Description: RNG produced from livestock manure, pipelined to for liquefaction, then transported by truck to Oregon LNG stations
B12: L-CNG CI | C12: =G99 -> 0 | D12: =CONCATENATE("Pathway Description: RNG produced from livestock manure, pipelined to ",C20, " for liquefaction, then transported by truck to Oregon LNG stations, re-gasified and compresses to Liquefied CNG") -> Pathway Description: RNG produced from livestock manure, pipelined to for liquefaction, then transported by truck to Oregon LNG stations, re-gasified and compresses to Liquefied CNG
B14: Section 1. Applicant Information
B15: 1.1 Company Name and ID Ex. Applicant, LLC (CXXXX) | E15: 1.6 CNG Dispensing Station(s) Location (Street, City, State) | H15: 1.11 Names of All Intermediate Facilities (e.g., manure sources not co-located with the biogas upgrading facility)
B16: 1.2 Facility Name and ID Ex. Production, LLC (F0XXXX) | E16: 1.7 LNG Dispensing Station(s) Location (Street, City, State)
B17: 1.3 Facility Physical Address (Upgrading facility for RNG) | E17: 1.8 LNG and/or L-CNG Dispensing Station(s) Location (Street, City, State)
B18: 1.4.a Digester Location (Street, City) | E18: 1.9 Digester Type | F18: ='Avoided Emissions'!C4 -> Covered Lagoon
B19: 1.4.b Digester Location (State) | C19: Oregon
B20: 1.5 LNG Liquefaction Facility Location (Street, City, State) | E20: 1.10 Average Annual Temperature (°C) | F20: =IFERROR(IF(AVERAGE('Manure-to-Biogas (LOP Inputs)'!G9:G32)<=10,"≤10",IF(AVERAGE('Manure-to-Biogas (LOP Inputs)'!G9:G32)>=28,"≥28", ROUNDUP(AVERAGE('Manure-to-Biogas (LOP Inputs)'!G9:G32), 0))), "") -> 
B23: Section 2. Biomethane Production Data | AK23: Section 3. LNG and L-CNG Production and Transport Data
B24: Data Years | C24: 2.1 Select Electricity Mix for Biomethane | D24: ORMX | F24: =IF(D24="User Defined Mix", "Enter User Defined Mix EF in cell E5 in 'EF Table' worksheet","") ->  | G24: 2.2a Provisional Pathway? | H24: =IF(COUNTA(B28:B51)=24, "No", "Yes") -> Yes | I24: 2.2b Number of Project Reporting Month | J24: =COUNTA(B28:B51) -> 0 | AK24: 3.1 LNG, L-CNG Facility Name and ID
B25: Process | C25: Raw Biogas Production | E25: Flared Biogas | G25: Raw Biogas Feedstock (at Inlet to cleanup/upgrading) | I25: Baseline energy use | L25: Digester energy use (Project) | R25: Upgrading and compression energy use (Project) | AE25: On-site Electricity Production From RNG | AH25: Biomethane Transport | AI25: =IF($D$24="User Defined Mix", "User-Defined Electricity EF","") ->  | AK25: 3.2 Transport Distance from Liquefaction Plant to station by HD Truck (miles)
B26: 2.3 Reporting Month | C26: 2.4 Total Raw Biogas Flow, (metered) | D26: 2.5 Biomethane Content | E26: 2.6 Flared Biogas Flow, (metered) | F26: 2.7 Biomethane Content | G26: 2.8 Raw Biogas Flow to Upgrading, (metered) | H26: 2.9 Biomethane Content | I26: 2.10 Diesel (baseline manure transport and handling) | J26: 2.11 Utility Sourced NG (baseline) | K26: 2.12 Grid Electricity (baseline manure pumping and solids separation) | L26: 2.13 Grid Electricity (for digester ) | M26: 2.14 Raw Biogas (for digester ) | N26: 2.15 Biomethane (for digester ) | O26: 2.16 Utility Sourced NG (for digester) | P26: 2.17 Diesel (digester project manure transport and handling) | Q26: 2.18 Other Fuel Used (for digester ) | R26: 2.19 Utility Sourced NG (upgrading and compression) | S26: 2.20 Raw Biogas (as Process Fuel for upgrading and compression) | T26: 2.21 Biomethane (as Process Fuel for upgrading and compression) | U26: 2.22 On-Site Electricity from Biogas (upgrading and compression) | V26: 2.23 Grid Electricity (upgrading and compression) | W26: 2.24 Diesel (upgrading and compression) | X26: 2.25 Other fuel used (upgrading and compression) | Y26: 2.26 Buy back fossil NG to boost Btu prior to pipeline injection | Z26: 2.27 Propane used (boost Btu prior to pipeline injection, other purpose) | AA26: 2.28 Fuel used for Biomethane transport | AB26: 2.29 Flared biomethane including tail gas from upgrading, (metered) | AC26: 2.30 Biomethane Content in Flared Gas | AD26: 2.31 Biomethane Injected into Pipeline for Transportation Fuel Production (metered), (subtract buyback NG and Propane if used to boost Btu) | AE26: 2.32 Biomethane to Electricity Production | AF26: 2.33 On-site Electricity Production | AG26: 2.34 Export Electricity | AH26: 2.35 NG pipeline Transmission | AI26: =IF(D24="User Defined Mix", "2.36 User Defined Electricity Mix","2.36 User Defined Parameters ") -> 2.36 User Defined Parameters | AK26: 3.3 Liquefaction EF (gCO2e/gallon LNG)
B27: (MM/YYYY) | C27: Standard Cubic Feet @ 60oF, 1 atm | D27: % Methane | E27: Standard Cubic Feet @ 60oF, 1 atm | F27: % Methane | G27: Standard Cubic Feet @ 60oF, 1 atm | H27: % Methane | I27: Gallons | J27: MMBtu, HHV | K27: kWh | L27: kWh | M27: MMBtu, LHV | N27: MMBtu, HHV | O27: MMBtu, HHV | P27: Gallons | Q27: User-Defined Fuel-1 (MJ) | R27: MMBtu, HHV | S27: MMBtu, LHV | T27: MMBtu, HHV | U27: kWh | V27: kWh | W27: Gallons | X27: User-Defined Fuel-2 (MJ) | Y27: MMBtu, HHV | Z27: Gallons | AA27: User-Defined Fuel-3 (MJ) | AB27: Standard Cubic Feet @ 60oF, 1 atm | AC27: % Methane | AD27: MMBtu, HHV | AE27: MMBtu, HHV | AF27: kWh | AG27: kWh | AH27: Miles | AI27: =IF($D$24="User Defined Mix", "gCO2e/kWh","N/A") -> N/A | AK27: 3.4 LNG Truck Type | AL27: Boil-Off Recovery Equipped
AI28: =IF('EF Table'!E5<>"",'EF Table'!E5, "") -> 
AK29: 3.5 Dispensed LNG L-CNG (MMBtu, LHV) | AL29: =AD55*AH46*(1-AH40*'EF Table'!F37)*(1-IF(AL27="Boil-Off Recovery Equipped",'EF Table'!F40,'EF Table'!F41)) -> 0
AH30: 2.35.a From upgrading facility to CNG station. | AI30: =IF(D24="User Defined Mix", "","N/A") -> N/A
AH36: 2.35.b From upgrading facility to LNG plant
AH42: 2.35.c Percentage of injected CNG that is converted into LNG
B52: Total | C52: =SUM(C28:C51) -> 0 | D52: =IFERROR(SUMPRODUCT(D28:D51,C28:C51)/C52,0) -> 0 | E52: =SUM(E28:E51) -> 0 | F52: =IFERROR(SUMPRODUCT(F28:F51,E28:E51)/E52,0) -> 0 | G52: =SUM(G28:G51) -> 0 | H52: =IFERROR(SUMPRODUCT(H28:H51,G28:G51)/G52,0) -> 0 | I52: =SUM(I28:I51) -> 0 | J52: =SUM(J28:J51) -> 0 | K52: =SUM(K28:K51) -> 0 | L52: =SUM(L28:L51) -> 0 | M52: =SUM(M28:M51) -> 0 | N52: 0 | O52: 0 | P52: 0 | Q52: 0 | R52: 0 | S52: 0 | T52: 0 | U52: 0 | V52: 0 | W52: 0 | X52: 0 | Y52: 0 | Z52: 0 | AA52: 0 | AB52: 0 | AC52: =IFERROR(SUMPRODUCT(AC28:AC51,AB28:AB51)/AB52,0) -> 0 | AD52: =SUM(AD28:AD51) -> 0 | AE52: =SUM(AE28:AE51) -> 0 | AF52: =SUM(AF28:AF51) -> 0 | AG52: =IFERROR(AVERAGE(AG28:AG51),0) -> 0
B53: Methane, SCF | D53: =C52*D52 -> 0 | F53: =E52*F52 -> 0 | H53: =G52*H52 -> 0 | AC53: =AB52*AC52 -> 0
B54: MMBtu, HHV | D54: =D53*Reference!D16/1000000 -> 0 | F54: =F53*Reference!D16/1000000 -> 0 | H54: =H53*Reference!$D$16/10^6 -> 0 | J54: =J52 -> 0 | N54: =N52 -> 0 | O54: =O52 -> 0 | R54: =R52 -> 0 | T54: =T52 -> 0 | AC54: =AC53*Reference!$D$16/10^6 -> 0 | AD54: =AD52 -> 0 | AE54: =AE52 -> 0 | AH54: 2.37 Fugitive methane from upgrading (%)
B55: MMBtu, LHV | D55: =D53*Reference!$C$16/1000000 -> 0 | F55: =F53*Reference!$C$16/1000000 -> 0 | H55: =H53*Reference!$C$16/1000000 -> 0 | J55: =J54*Reference!F15 -> 0 | L55: =L52 -> 0 | M55: =M52 -> 0 | N55: =N54*Reference!F16 -> 0 | O55: =O52*Reference!F15 -> 0 | Q55: =Q52 -> 0 | R55: =R54*Reference!$C$15/Reference!$D$15 -> 0 | S55: =S52 -> 0 | T55: =T54*Reference!$F$16 -> 0 | X55: =X52 -> 0 | AA55: =AA52 -> 0 | AC55: =AC53*Reference!$C$16/1000000 -> 0 | AD55: =AD52*Reference!F16 -> 0 | AE55: =AE54*Reference!F16 -> 0 | AH55: =IF(AA52>0,MAX(IFERROR(1-((AD55+AE55+AC55+T55+N55)/H55),0),0.0235), MAX(IFERROR(1-((AD55+AE55+AC55+T55+N55)/H55),0),0.02)) -> 0.02
B56: EF Units | I56: gCO2e/gallon | J56: gCO2e/MMBtu | K56: gCO2e/kWh | L56: =K56 -> gCO2e/kWh | M56: gCO2e/MMBtu | N56: gCO2e/MMBtu | O56: gCO2e/MMBtu | P56: =I56 -> gCO2e/gallon | Q56: =VLOOKUP(Q27,'EF Table'!C76:E82, 3, FALSE) -> gCO2e/MJ | R56: gCO2e/MMBtu | S56: gCO2e/MMBtu | T56: gCO2e/MMBtu | U56: gCO2e/kWh | V56: gCO2e/kWh | W56: gCO2e/gallon | X56: =VLOOKUP(X27,'EF Table'!C76:E82, 3, FALSE) -> gCO2e/MJ | AA56: =VLOOKUP(AA27,'EF Table'!C76:E82, 3, FALSE) -> gCO2e/MJ | AC56: gCO2e/MMBtu | AH56: 2.38 Maximum available biomethane for dispensing (MMBtu, LHV)
B57: EF | I57: ='EF Table'!D76 -> 12308.3542 | J57: ='EF Table'!D77 -> 75495.75125 | K57: =VLOOKUP(D24,'EF Table'!D4:E34,2,FALSE) -> 403.0760263 | L57: =VLOOKUP(D24,'EF Table'!D4:E34,2,FALSE) -> 403.0760263 | M57: ='EF Table'!D62*Reference!H45 -> 60403.80071 | N57: ='EF Table'!I52*Reference!H45 -> 59501.07496 | O57: ='EF Table'!D77 -> 75495.75125 | P57: ='EF Table'!D76 -> 12308.3542 | Q57: =VLOOKUP(Q27,'EF Table'!C76:E82, 2, FALSE) -> 0 | R57: ='EF Table'!D77 -> 75495.75125 | S57: ='EF Table'!D62*Reference!H45 -> 60403.80071 | T57: ='EF Table'!$I$52*Reference!$H$45 -> 59501.07496 | U57: ='EF Table'!$D$72 -> 641.4284167 | V57: =VLOOKUP(D24,'EF Table'!D4:E34,2,FALSE) -> 403.0760263 | W57: ='EF Table'!D76 -> 12308.3542 | X57: =VLOOKUP(X27,'EF Table'!C76:E82, 2, FALSE) -> 0 | AA57: =VLOOKUP(AA27,'EF Table'!C76:E82, 2, FALSE) -> 0 | AC57: ='EF Table'!D62*Reference!H45 -> 60403.80071
B58: GHG Emissions, gCO2e | R58: =R55*R57 -> 0 | T58: =T52*T57 -> 0 | AH58: =AD55*(1-AH34*'EF Table'!F37) -> 0
B61: Section 4. CI Calculation Details
B63: Manure to CNG, LNG, L-CNG | E63: GHG emissions CO2e | F63: CI, gCO2e/MMBtu | G63: gCO2e/MJ
B64: =D24 -> ORMX | C64: Raw Biogas Production-Digester | D64: Net-Diesel | E64: =IF(I52>P52,0,P52-I52)*I57 -> 0 | F64: =IFERROR(E64/$AH$58,0) -> 0 | G64: =F64/Reference!$H$45 -> 0
D65: Net-Grid electricity | E65: =IF(K52>L52,0,L52-K52)*K57 -> 0 | F65: 0 | G65: =F65/Reference!$H$45 -> 0
D66: Utility source NG | E66: =O55*O57 -> 0 | F66: 0 | G66: =F66/Reference!$H$45 -> 0
D67: Raw Biogas (heat) | E67: =M55*M57 -> 0 | F67: 0 | G67: =F67/Reference!$H$45 -> 0
D68: Biomethane (heat) | E68: =N55*N57 -> 0 | F68: 0 | G68: =F68/Reference!$H$45 -> 0
D69: =CONCATENATE(Q27, " used for digester") -> User-Defined Fuel-1 (MJ) used for digester | E69: =Q55*Q57 -> 0 | F69: 0 | G69: =F69/Reference!$H$45 -> 0
D70: Subtotal | G70: =SUM(G64:G69) -> 0
C71: Biogas upgrading & Compression & Biomethane transport | D71: Grid electricity | E71: =V52*V57 -> 0 | F71: =IFERROR(E71/$AH$58,0) -> 0 | G71: =F71/Reference!$H$45 -> 0
D72: Utility source NG | E72: =R55*R57 -> 0 | F72: 0 | G72: =F72/Reference!$H$45 -> 0
D73: Raw Biogas (process fuel) | E73: =S55*S57 -> 0 | F73: 0 | G73: =F73/Reference!$H$45 -> 0
D74: Biomethane (process fuel) | E74: =T55*T57 -> 0 | F74: 0 | G74: =F74/Reference!$H$45 -> 0
D75: Onsite electricity from biomethane | E75: =U52*U57 -> 0 | F75: 0 | G75: =F75/Reference!$H$45 -> 0
D76: Diesel | E76: =W52*W57 -> 0 | F76: 0 | G76: =F76/Reference!$H$45 -> 0
D77: =CONCATENATE(X27, " used for upgrading and compression") -> User-Defined Fuel-2 (MJ) used for upgrading and compression | E77: =X55*X57 -> 0 | F77: 0 | G77: =F77/Reference!$H$45 -> 0
D78: =CONCATENATE("Biomethane transported by truck (", AA27, ")") -> Biomethane transported by truck (User-Defined Fuel-3 (MJ)) | E78: =AA55*AA57 -> 0 | F78: 0 | G78: =F78/Reference!$H$45 -> 0
D79: Biomethane (flaring) | E79: =AC55*AC57 -> 0 | F79: 0 | G79: =F79/Reference!$H$45 -> 0
D80: Feed Loss (fugitive methane) | E80: =H53*AH55*Reference!E16*Reference!B20 -> 0 | F80: 0 | G80: =F80/Reference!$H$45 -> 0
D81: Subtotal | G81: =SUM(G71:G80) -> 0
B82: US Average | C82: Biomethane Transmission | D82: by pipeline to LNG Plant | E82: =($AD$55*AH46*Reference!H45*AH40)*('EF Table'!F38+('EF Table'!F37/(Reference!C16*Reference!G45)*Reference!E16*Reference!B20)) -> 0 | F82: =IFERROR(E82/$AL$29,0) -> 0 | G82: =F82/Reference!$H$45 -> 0
D83: by pipeline to CNG Plant | E83: =$AD$55*Reference!H45*AH34*('EF Table'!F38+('EF Table'!F37/(Reference!C16*Reference!G45)*Reference!E16*Reference!B20)) -> 0 | F83: =IFERROR(E83/$AH$58,0) -> 0 | G83: =F83/Reference!$H$45 -> 0
C84: LNG Production | D84: Liquefaction Process | E84: =(AD55*AH46*Reference!H45)*(AL26/(Reference!B13*Reference!G45)) -> 0 | F84: =IFERROR(E84/$AL$29,0) -> 0 | G84: =F84/Reference!$H$45 -> 0
D86: Subtotal | G86: =SUM(G84:G85) -> 0
C87: LNG Transport and Distribution | D87: LNG Truck | E87: =(AD55*AH46*Reference!H45)*AL25*'EF Table'!F39 -> 0 | F87: =IFERROR(E87/$AL$29,0) -> 0 | G87: =F87/Reference!$H$45 -> 0
D88: LNG T&D Fugitives | E88: =AD55*AH46*_xlfn.IFS(AL27="Boil-Off Recovery Equipped",'EF Table'!F40,AL27="No Boil-Off Recovery",'EF Table'!F41)/(Reference!C16*Reference!G45)*Reference!E16*Reference!B20 -> 0 | F88: =IFERROR(E88/$AL$29,0) -> 0 | G88: =F88/Reference!$H$45 -> 0
D89: Subtotal | G89: =G87+G88 -> 0
B90: Manure to CNG, LNG, L-CNG | E90: GHG emissions CO2e | F90: CI, gCO2e/MMBtu | G90: gCO2e/MJ
B91: ORMX | C91: L-CNG and CNG Production | D91: CI for Compression of CNG (standard Value) | F91: =G91/Reference!D49 -> 3935.35832 | G91: ='EF Table'!$F$42 -> 3.73
C92: Reciprocating engine emissions | D92: CNG Vehicles | F92: =(Reference!C59+Reference!C60+Reference!C61)*Reference!H45 -> 64948.85276 | G92: =F92/Reference!$H$45 -> 61.55963474
D94: LNG Vehicles | F94: =(Reference!E59+Reference!E60+Reference!E61)*Reference!H45 -> 64948.85276 | G94: =F94/Reference!$H$45 -> 61.55963474
C95: Credits | F95: Methane avoided | G95: ='Avoided Emissions'!C52 -> 0
F96: CO2 diverted | G96: ='Avoided Emissions'!G52 -> 0
F97: Final CNG CI, g/MJ | G97: =IF(AD52=0,0,(G70+G81+G83+G95+G96+G91+G92)) -> 0
F98: Final LNG CI, g/MJ | G98: =IF(AH46=0,0,(G70+G81+G82+G86+G89+G95+G96+G94)) -> 0
F99: Final L-CNG CI, g/MJ | G99: =IF(AH46=0,0,(G70+G81+G82+G86+G89+G95+G96+G91+G92)) -> 0

Sheet EF Table
C2: OR-GREET 4.0 Emission Factor
C4: Grid Electricity (2021 eGRID Region, ORMX from Oregon 2021 Data) | D4: U.S. Average | E4: 474.1481811 | F4: gCO2e/kWh
D5: User Defined Mix
D6: ORMX | E6: 403.0760263
D7: AKMS | E7: 305.0595453
D8: AZNM | E8: 452.5979964
D9: CAMX | E9: 329.315509
D10: ERCT | E10: 470.4603747
D11: FRCC | E11: 500.0897813
D12: HIMS | E12: 729.769644
D13: HIOA | E13: 993.0409075
D14: MROE | E14: 835.1729646
D15: MROW | E15: 522.2755266
D16: NEWE | E16: 343.9333755
D17: NWPP | E17: 341.7320862
D18: NYCW | E18: 522.5910041
D19: AKGD | E19: 739.3736966
D20: NYUP | E20: 153.9203041
D21: PRMS | E21: 864.8480365
D22: RFCE | E22: 403.0232799
D23: RFCM | E23: 647.6560142
D24: RFCW | E24: 571.7384883
D25: RMPA | E25: 581.2447114
D26: SPNO | E26: 518.5779611
D27: SPSO | E27: 538.184671
D28: SRMV | E28: 480.1475905
D29: SRMW | E29: 820.1296942
D30: SRSO | E30: 508.7158303
D31: SRTV | E31: 503.5619942
D32: SRVC | E32: 370.789402
D33: Brazil | E33: 110.5727336
D34: Canada | E34: 142.5873345
C37: Biomethane Transport | D37: Pipeline | E37: Evaporative Losses | F37: 3.247789943e-06 | G37: %/mile
E38: Transport Energy | F38: 0.003887510773 | G38: gCO2e/MJ-Mile, LHV
D39: LNG Truck+Storage | E39: LNG Transport | F39: 0.006583068298
E40: Evaporative Losses - With Boil-Off Recovery | F40: 0.003118683479 | G40: %
E41: Evaporative Losses - Without Boil-Off Recovery | F41: 0.01559341739
D42: Compression | E42: at Fueling Station | F42: 3.73 | G42: gCO2e/MJ, LHV
C45: Natural Gas EF for Stationary/Facility Use
C46: Details in g/MMBtu of NG | D46: NG Extraction | E46: NG Processing | F46: NG Transport, 1000 miles pipeline | G46: Feedstock CI Total | H46: Natural Gas Flaring | I46: Small Industrial Boiler (10-100 MMBtu/hr input) | J46: Final CI, gCO2e/MJ
C47: VOC | D47: 2.551199825 | E47: 4.705052318 | F47: 5.770403988 | G47: =SUM(D47:F47) -> 13.02665613 | H47: 2.5 | I47: 2.54
C48: CO | D48: 12.87981575 | E48: 2.72925111 | F48: 29.54658926 | G48: =SUM(D48:F48) -> 45.15565612 | H48: 26 | I48: 24.97
C49: CH4 | D49: 197.2891054 | E49: 32.64382906 | F49: 118.1722123 | G49: =SUM(D49:F49) -> 348.1051467 | H49: 48.90000153 | I49: 1.06
C50: N2O | D50: 0.02625594995 | E50: 0.02007031113 | F50: 2.04246231 | G50: =SUM(D50:F50) -> 2.088788571 | H50: 1.100000024 | I50: 0.35
C51: CO2 | D51: 3089.239172 | E51: 2446.845077 | F51: 2590.6036 | G51: =SUM(D51:F51) -> 8126.687848 | H51: 59189.79115 | I51: 59323.12006
C52: Subtotal gCO2e/MJ | D52: =(D47*Reference!$B$22+D48*Reference!$B$23+D49*Reference!$B$20+D50*Reference!$B$21+D51)/Reference!$H$45 -> 7.637019434 | E52: =(E47*Reference!$B$22+E48*Reference!$B$23+E49*Reference!$B$20+E50*Reference!$B$21+E51)/Reference!$H$45 -> 3.116303899 | F52: =(F47*Reference!$B$22+F48*Reference!$B$23+F49*Reference!$B$20+F50*Reference!$B$21+F51)/Reference!$H$45 -> 5.8935055 | G52: =(G47*Reference!$B$22+G48*Reference!$B$23+G49*Reference!$B$20+G50*Reference!$B$21+G51)/Reference!$H$45 -> 16.64682883 | H52: =(H47*Reference!$B$22+H48*Reference!$B$23+H49*Reference!$B$20+H50*Reference!$B$21+H51)/Reference!$H$45 -> 57.61660865 | I52: =(I47*Reference!$B$22+I48*Reference!$B$23+I49*Reference!$B$20+I50*Reference!$B$21+I51)/Reference!$H$45 -> 56.39613767 | J52: =G52+H52 -> 74.26343748
G53: Biomethane (gCO2e/MJ) | H53: =(H47*Reference!$B$22+H48*Reference!$B$23+H49*Reference!$B$20+H50*Reference!$B$21)/Reference!$H$45 -> 1.515511103 | I53: =(I47*Reference!$B$22+I48*Reference!$B$23+I49*Reference!$B$20+I50*Reference!$B$21)/Reference!$H$45 -> 0.1686687058
C55: RNG flaring
C56: Details in g/MMBtu
C57: VOC | D57: 23.666
C58: CO | D58: 41.469
C59: CH4 | D59: 31.587
C60: N2O | D60: 1.1
C61: CO2 | D61: 59147.40111
C62: Subtotal gCO2e/MJ | D62: =(D57*Reference!$B$22+D58*Reference!$B$23+D59*Reference!$B$20+D60*Reference!$B$21+D61)/Reference!$H$45 -> 57.25175659
C64: Biogas electricity production
C65: Stationary Reciprocating Engine
C66: VOC | D66: 62.701
C67: CO | D67: 273.497
C68: CH4 | D68: 445.958
C69: N2O | D69: 0.867
C70: CO2 | D70: 57521.60635
C71: Subtotal gCO2e/MJ | D71: =(D66*Reference!$B$22+D67*Reference!$B$23+D68*Reference!$B$20+D69*Reference!$B$21+D70)/Reference!$H$45 -> 65.92458728
C72: gCO2e/kWh | D72: =D71*3.6/(0.37) -> 641.4284167 | E72: Assuming 37% efficiency
C74: Fuels used in pathway
C75: Fuel Name and Unit | D75: EF | E75: EF Unit
C76: Diesel (Gallons) | D76: 12308.3542 | E76: gCO2e/gal
C77: NG (MMBtu, LHV) | D77: 75495.75125 | E77: gCO2e/MMBtu
C78: Grid Electricity (kWh) | D78: =VLOOKUP('Biogas-to-RNG'!D24,D4:E34,2,FALSE) -> 403.0760263 | E78: gCO2e/kWh
C79: Propane (Gallons) | D79: 7345.277403 | E79: gCO2e/gallon
C80: User-Defined Fuel-1 (MJ) | E80: gCO2e/MJ
C81: User-Defined Fuel-2 (MJ) | E81: gCO2e/MJ
C82: User-Defined Fuel-3 (MJ) | E82: gCO2e/MJ

Sheet Reference
A4: 1) Specifications of Fuels
A5: Fuel | B5: Heating Value | E5: Density
B6: Calculation: LHV | C6: LHV | D6: HHV | F6: LHV/HHV
A7: Use LHV or HHV in calculations? | B7: 1 | C7: 1 -- LHV; 2 -- HHV
A8: Liquid Fuels: | B8: Btu/gal | C8: Btu/gal | D8: Btu/gal | E8: grams/gal
A9: U.S. conventional diesel | B9: 128450 | C9: 128450 | D9: 137380 | E9: 3167 | F9: 0.9349978163
A10: CA conventional diesel
A11: Low-sulfur diesel | B11: 127460 | C11: 127460 | D11: 133075.1388 | E11: 3142 | F11: 0.9578047497
A12: Liquefied petroleum gas (LPG) | B12: 84950 | C12: 84950 | D12: 91410 | E12: 1923 | F12: 0.929329395
A13: Liquefied natural gas (LNG) | B13: 74720 | C13: 74720 | D13: 84820 | E13: 1621 | F13: 0.8809243103
A14: Gaseous Fuels (at 60F and 1atm): | B14: Btu/ft3 | C14: Btu/ft3 | D14: Btu/ft3 | E14: gms/ft3 | F14: LHV/HHV
A15: Natural gas | B15: 930 | C15: 930 | D15: 1030 | E15: 20.8 | F15: 0.9029126214
A16: Pure Methane | B16: 910 | C16: 910 | D16: 1010 | E16: 19.2 | F16: 0.9007490637
A18: 2) Global Warming Potentials of Greenhouse Gases: relative to CO2
A19: CO2 | B19: 1
A20: CH4 | B20: 25
A21: N2O | B21: 298
A22: VOC | B22: 3.116666667
A23: CO | B23: 1.571428571
A24: NO2 | B24: 0
A27: 3) Unit Conversion
A28: Mass | B28: 1 g | C28: 1 kg | D28: 1 metric tonne | E28: 1 lb | F28: 1 short ton
A29: g | B29: 1 | C29: 1000 | D29: 1000000 | E29: 453.59237 | F29: 907184.74
A30: kg | B30: 0.001 | C30: 1 | D30: 1000 | E30: 0.45359237 | F30: 907.18474
A31: metric tonne | B31: 1e-06 | C31: 0.001 | D31: 1 | E31: 0.00045359237 | F31: 0.90718474
A32: lb | B32: 0.002204622622 | C32: 2.204622622 | D32: 2204.622622 | E32: 1 | F32: 2000
A33: short ton | B33: 1.102311311e-06 | C33: 0.001102311311 | D33: 1.102311311 | E33: 0.0005 | F33: 1
A35: Volume | B35: 1 m3 | C35: 1 ml | D35: 1 L | E35: 1 gal | F35: 1 ft3
A36: m3 | B36: 1 | C36: 1e-06 | D36: 0.001 | E36: 0.003785411 | F36: 0.028316847
A37: ml | B37: 1000000 | C37: 1 | D37: 1000 | E37: 3785.411 | F37: 28316.847
A38: L | B38: 1000 | C38: 0.001 | D38: 1 | E38: 3.785411 | F38: 28.316847
A39: gal | B39: 264.1721071 | C39: 0.0002641721071 | D39: 0.2641721071 | E39: 1 | F39: 7.480521138
A40: ft3 | B40: 35.31466621 | C40: 3.531466621e-05 | D40: 0.03531466621 | E40: 0.1336805259 | F40: 1
A42: Energy | B42: 1 J | C42: 1kJ | D42: 1 MJ | E42: 1Wh | F42: 1 kWh | G42: 1 BTU | H42: 1 mmBTU
A43: J | B43: 1 | C43: 1000 | D43: 1000000 | E43: 3600 | F43: 3600000 | G43: 1055.05585 | H43: 1055055850
A44: kJ | B44: 0.001 | C44: 1 | D44: 1000 | E44: 3.6 | F44: 3600 | G44: 1.05505585 | H44: 1055055.85
A45: MJ | B45: 1e-06 | C45: 0.001 | D45: 1 | E45: 0.0036 | F45: 3.6 | G45: 0.00105505585 | H45: 1055.05585
A46: Wh | B46: 0.0002777777778 | C46: 0.2777777778 | D46: 277.7777778 | E46: 1 | F46: 1000 | G46: 0.2930710694 | H46: 293071.0694
A47: kWh | B47: 2.777777778e-07 | C47: 0.0002777777778 | D47: 0.2777777778 | E47: 0.001 | F47: 1 | G47: 0.0002930710694 | H47: 293.0710694
A48: BTU | B48: 0.0009478171227 | C48: 0.9478171227 | D48: 947.8171227 | E48: 3.412141642 | F48: 3412.141642 | G48: 1 | H48: 1000000
A49: mmBTU | B49: 9.478171227e-10 | C49: 9.478171227e-07 | D49: 0.0009478171227 | E49: 3.412141642e-06 | F49: 0.003412141642 | G49: 1e-06 | H49: 1
C50: LHV | D50: HHV
C51: Btu/ft3 | D51: Btu/ft3 | E51: gms/ft3
A52: Methane specs | C52: 910.3232751 | D52: 1010.458835 | E52: 19.20883793
A55: Tailpipe GHG Emissions from Oregon CNG - LNG Fleet | B55: CNG and L-CNG | D55: LNG
B56: g/MMBtu | C56: gCO2e/MJ | D56: g/MMBtu | E56: gCO2e/MJ
A57: VOC
A58: CO
A59: CH4 | B59: 85.09974662 | C59: =B59*B20/$H$45 -> 2.016474925 | D59: 85.09974662 | E59: =D59*B20/$H$45 -> 2.016474925
A60: N2O | B60: 12.3563538 | C60: =B60*B21/$H$45 -> 3.490045985 | D60: 12.3563538 | E60: =D60*B21/$H$45 -> 3.490045985
A61: CO2 | B61: 59139.16566 | C61: =B61/$H$45 -> 56.05311383 | D61: 59139.16566 | E61: =D61/Reference!$H$45 -> 56.05311383
A62: Total, gCO2e/MMBtu | B62: =(B59*B20+B60*B21+B61*B19) -> 64948.85276 | D62: =(D59*B20+D60*B21+D61*B19) -> 64948.85276
A63: g/MJ | C63: =SUM(C59:C62) -> 61.55963474 | E63: =SUM(E59:E62) -> 61.55963474
A66: Details of Boil-Off Effects of Liquefied Natural Gas
B67: Storage at Production Plant | C67: Transportation from Plant to Bulk Terminal | D67: Bulk Terminal Storage | E67: Distribution from Bulk Terminal to Refueling Station | F67: Refueling Station Storage for Central Plant H2 Pathway | G67: Refueling Station Storage for Station H2 Pathway | H67: Storage at Landfill Gas Plant | I67: Distribution from Landfill Gas Plant to Refueling Station | J67: Refueling Station Storage for CNG from RNG pathway
A68: Boil-Off Rate: % per Day
A69: Liquefied Natural Gas | B69: 0.001 | C69: 0.001 | D69: 0.001 | E69: 0.001 | F69: 0.001 | H69: 0.001 | I69: 0.001 | J69: 0.001
A70: Liquid H2 | B70: 0.003 | C70: 0.003 | D70: 0.003 | E70: 0.003 | F70: 0.003 | G70: 0.003 | H70: 0.003 | I70: 0.003 | J70: 0.003
A71: Duration of Storage or Transit: Days
A72: LNG as a final transportation fuel | B72: 5 | C72: 0 | D72: 5 | E72: 0.1 | F72: 3 | H72: 3 | I72: 0.1 | J72: 3
A73: LNG as an intermediate product from NNA NG | B73: 5 | C73: 10.41666667 | D73: 5 | E73: 0.1 | F73: 3
A74: LNG as an intermediate product from NNA FG | B74: 5 | C74: 12.29166667 | D74: 5 | E74: 0.1 | F74: 3
A75: Liquid H2 from NG | B75: 5 | C75: 0 | D75: 5 | E75: 0.1 | F75: 3 | G75: 3
A76: Recovery Rate for Boil-Off Gas
A77: LNG | B77: 0.8 | C77: 0.8 | D77: 0.8 | E77: 0.8 | F77: 0.8 | H77: 0.8 | I77: 0.8 | J77: 0.8
A78: Liquid H2 | B78: 0.8 | C78: 0.8 | D78: 0.8 | E78: 0.8 | F78: 0.8 | G78: 0.8
A80: -
A90: Emissions Factor Tables (Appendix A of the "Compliance Offset Protocol Livestock Projects")
A92: Table A.1 and A.2: Typical Average Mass (MassL), Volatile Solids, and Maximum Methane Potential of all Livestock Category
A93: Livestock Category (L) | B93: Livestock Typical Average Mass (TAM) in kg | C93: VSL (kg/day per 1,000 kg mass) | D93: Bo,L (m3 CH4/kg VS added)
A94: Dairy cows (on feed) | B94: 680 | C94: =VLOOKUP('Biogas-to-RNG'!C19:D19, Reference!A113:E162, 2, FALSE) -> 10.57 | D94: 0.24
A95: Non-milking dairy cows (on feed) | B95: 684 | C95: 5.56 | D95: 0.24
A96: Heifers (on feed) | B96: 407 | C96: =VLOOKUP('Biogas-to-RNG'!C19:D19, Reference!A113:E162, 3, FALSE) -> 8.44 | D96: 0.17
A97: Bulls (grazing) | B97: 874 | C97: 6.04 | D97: 0.17
A98: Calves (grazing) | B98: 118 | C98: 7.7 | D98: 0.17
A99: Heifers (grazing) | B99: 351.5 | C99: =VLOOKUP('Biogas-to-RNG'!C19:D19, Reference!A113:E162, 4, FALSE) -> 15.75 | D99: 0.17
A100: Cows (grazing) | B100: 582.5 | C100: =VLOOKUP('Biogas-to-RNG'!C19:D19, Reference!A113:E162, 5, FALSE) -> 7.82 | D100: 0.17
A101: Nursery swine | B101: 12.5 | C101: 8.89 | D101: 0.48
A102: Grow/finish swine | B102: 70 | C102: 5.36 | D102: 0.48
A103: Breeding swine | B103: 198 | C103: 2.71 | D103: 0.35
A104: -
A105: Table A.3. Biogas Collection Efficiency by Digester Type
A106: Digester Type | B106: Cover Type | C106: Biogas Collection Efficiency (BCE) | D106: Methane Leakage
A107: Covered Lagoon | B107: Fully Covered (Bank-to-Bank) | C107: 0.95 | D107: =1-C107 -> 0.05
B108: Partially Covered (Modular) | C108: 0.95 x % area covered | D108: 1 - (0.95 x % area covered)
A109: Complete mix, plug flow, or fixed film digester | B109: Enclosed Vessel | C109: 0.98 | D109: =1-C109 -> 0.02
A111: Table A.4. 2012 Volatile Solid (VS) Default Values for Dairy Cows, Heifers, Heifers-Grazing and Cows-Grazing by State (kg/day/1,000 kg mass)
A112: ~~~~ State ~~~~ | B112: Dairy cows (on feed) | C112: Heifers (on feed) | D112: Heifers (grazing) | E112: Cows (grazing)
A113: Alabama | B113: 8.62 | C113: 8.44 | D113: 19.67 | E113: 7.82
A114: Alaska | B114: 8.71 | C114: 8.44 | D114: 30.94 | E114: 8.89
A115: Arizona | B115: 11.64 | C115: 8.44 | D115: 22.32 | E115: 8.89
A116: Arkansas | B116: 8.44 | C116: 8.44 | D116: 18.38 | E116: 7.82
A117: California | B117: 11.41 | C117: 8.44 | D117: 13.96 | E117: 8.89
A118: Colorado | B118: 11.64 | C118: 8.44 | D118: 12.28 | E118: 8.89
A119: Connecticut | B119: 10.41 | C119: 8.44 | D119: 23.35 | E119: 7.87
A120: Delaware | B120: 10.18 | C120: 8.44 | D120: 16.82 | E120: 7.87
A121: Florida | B121: 10.36 | C121: 8.44 | D121: 21.99 | E121: 7.82
A122: Georgia | B122: 10.4 | C122: 8.44 | D122: 19.17 | E122: 7.82
A123: Hawaii | B123: 8.7 | C123: 8.44 | D123: 20.25 | E123: 8.89
A124: Idaho | B124: 11.45 | C124: 8.44 | D124: 13.75 | E124: 8.89
A125: Illinois | B125: 10.3 | C125: 8.44 | D125: 11.42 | E125: 7.47
A126: Indiana | B126: 10.85 | C126: 8.44 | D126: 11.72 | E126: 7.47
A127: Iowa | B127: 10.96 | C127: 8.44 | D127: 9.54 | E127: 7.47
A128: Kansas | B128: 10.94 | C128: 8.44 | D128: 8.99 | E128: 7.47
A129: Kentucky | B129: 9.2 | C129: 8.44 | D129: 14.69 | E129: 7.82
A130: Louisiana | B130: 8.41 | C130: 8.44 | D130: 21.36 | E130: 7.82
A131: Maine | B131: 10.01 | C131: 8.44 | D131: 15.12 | E131: 7.87
A132: Maryland | B132: 10.2 | C132: 8.44 | D132: 17.18 | E132: 7.87
A133: Massachusetts | B133: 9.91 | C133: 8.44 | D133: 20.89 | E133: 7.87
A134: Michigan | B134: 11.56 | C134: 8.44 | D134: 12.19 | E134: 7.47
A135: Minnesota | B135: 10.29 | C135: 8.44 | D135: 11.47 | E135: 7.47
A136: Mississippi | B136: 8.96 | C136: 8.44 | D136: 19.31 | E136: 7.82
A137: Missouri | B137: 8.92 | C137: 8.44 | D137: 14.84 | E137: 7.47
A138: Montana | B138: 10.85 | C138: 8.44 | D138: 18.5 | E138: 7.82
A139: Nebraska | B139: 10.79 | C139: 8.44 | D139: 11.97 | E139: 8.89
A140: Nevada | B140: 11.33 | C140: 8.44 | D140: 14.77 | E140: 7.47
A141: New Hampshire | B141: 10.34 | C141: 8.44 | D141: 23.83 | E141: 8.92
A142: New Jersey | B142: 10.01 | C142: 8.44 | D142: 16.56 | E142: 7.87
A143: New Mexico | B143: 11.85 | C143: 8.44 | D143: 14.27 | E143: 7.87
A144: New York | B144: 10.93 | C144: 8.44 | D144: 16.72 | E144: 8.89
A145: North Carolina | B145: 10.79 | C145: 8.44 | D145: 19.93 | E145: 7.87
A146: North Dakota | B146: 10.22 | C146: 8.44 | D146: 14.61 | E146: 7.82
A147: Ohio | B147: 10.39 | C147: 8.44 | D147: 13.24 | E147: 7.47
A148: Oklahoma | B148: 9.76 | C148: 8.44 | D148: 12.67 | E148: 7.47
A149: Oregon | B149: 10.57 | C149: 8.44 | D149: 15.75 | E149: 7.82
A150: Pennsylvania | B150: 10.32 | C150: 8.44 | D150: 16.19 | E150: 8.89
A151: Rhode Island | B151: 9.93 | C151: 8.44 | D151: 20.89 | E151: 7.87
A152: South Carolina | B152: 9.85 | C152: 8.44 | D152: 19.71 | E152: 7.87
A153: South Dakota | B153: 10.86 | C153: 8.44 | D153: 12.77 | E153: 7.82
A154: Tennessee | B154: 9.49 | C154: 8.44 | D154: 16.25 | E154: 7.47
A155: Texas | B155: 11.06 | C155: 8.44 | D155: 11.15 | E155: 7.82
A156: Utah | B156: 10.95 | C156: 8.44 | D156: 16.65 | E156: 7.82
A157: Vermont | B157: 10.23 | C157: 8.44 | D157: 16.08 | E157: 8.89
A158: Virginia | B158: 10.06 | C158: 8.44 | D158: 17.93 | E158: 7.87
A159: Washington | B159: 11.58 | C159: 8.44 | D159: 12.06 | E159: 7.82
A160: West Virginia | B160: 9.18 | C160: 8.44 | D160: 19.13 | E160: 8.89
A161: Wisconsin | B161: 10.87 | C161: 8.44 | D161: 17.03 | E161: 7.47
A162: Wyoming | B162: 10.69 | C162: 8.44 | D162: 18.18 | E162: 8.89
A164: Table A.5. IPCC 2006 Methane Conversion Factors by Manure Management System Component/Methane Source 'S'
A165: MCF Values by Temperature for Manure Management Systems
B166: MCFs by average reporting period temperature (°C)
B167: Cool | G167: Temperate | R167: Warm | U167: Comments
A168: System | B168: ≤10 | C168: 11 | D168: 12 | E168: 13 | F168: 14 | G168: 15 | H168: 16 | I168: 17 | J168: 18 | K168: 19 | L168: 20 | M168: 21 | N168: 22 | O168: 23 | P168: 24 | Q168: 25 | R168: 26 | S168: 27 | T168: ≥28
A169: Pasture/Range/Paddock | B169: 0.01 | C169: 0.01 | D169: 0.01 | E169: 0.01 | F169: 0.01 | G169: 0.015 | H169: 0.015 | I169: 0.015 | J169: 0.015 | K169: 0.015 | L169: 0.015 | M169: 0.015 | N169: 0.015 | O169: 0.015 | P169: 0.015 | Q169: 0.015 | R169: 0.02 | S169: 0.02 | T169: 0.02 | U169: Judgment of IPCC Expert Group in combination with Hashimoto and Steed (1994).
A170: Daily spread | B170: 0.001 | C170: 0.001 | D170: 0.001 | E170: 0.001 | F170: 0.001 | G170: 0.005 | H170: 0.005 | I170: 0.005 | J170: 0.005 | K170: 0.005 | L170: 0.005 | M170: 0.005 | N170: 0.005 | O170: 0.005 | P170: 0.005 | Q170: 0.005 | R170: 0.01 | S170: 0.01 | T170: 0.01 | U170: Hashimoto and Steed (1993).
A171: Solid storage | B171: 0.02 | C171: 0.02 | D171: 0.02 | E171: 0.02 | F171: 0.02 | G171: 0.04 | H171: 0.04 | I171: 0.04 | J171: 0.04 | K171: 0.04 | L171: 0.04 | M171: 0.04 | N171: 0.04 | O171: 0.04 | P171: 0.04 | Q171: 0.04 | R171: 0.05 | S171: 0.05 | T171: 0.05 | U171: Judgment of IPCC Expert Group in combination with Amon et al. (2001), which shows emissions of approximately 2% in winter and 4% in summer. Warm climate is based on judgment of IPCC Expert Group and Amon et al. (1998).
A172: Dry lot | B172: 0.01 | C172: 0.01 | D172: 0.01 | E172: 0.01 | F172: 0.01 | G172: 0.015 | H172: 0.015 | I172: 0.015 | J172: 0.015 | K172: 0.015 | L172: 0.015 | M172: 0.015 | N172: 0.015 | O172: 0.015 | P172: 0.015 | Q172: 0.015 | R172: 0.02 | S172: 0.02 | T172: 0.02 | U172: Judgment of IPCC Expert Group in combination with Hashimoto and Steed (1994).
A173: Liquid/slurry w/natural crust cover | B173: 0.1 | C173: 0.11 | D173: 0.13 | E173: 0.14 | F173: 0.15 | G173: 0.17 | H173: 0.18 | I173: 0.2 | J173: 0.22 | K173: 0.24 | L173: 0.26 | M173: 0.29 | N173: 0.31 | O173: 0.34 | P173: 0.37 | Q173: 0.41 | R173: 0.44 | S173: 0.48 | T173: 0.5 | U173: Judgment of IPCC Expert Group in combination with Mangino et al. (2001) and Sommer (2000). The estimated reduction due to the crust cover (40%) is an annual average value based on a limited data set and can be highly variable dependent on temperature, rainfall, and composition.
A174: Liquid/slurry uncovered | B174: 0.17 | C174: 0.19 | D174: 0.2 | E174: 0.22 | F174: 0.25 | G174: 0.27 | H174: 0.29 | I174: 0.32 | J174: 0.35 | K174: 0.39 | L174: 0.42 | M174: 0.46 | N174: 0.5 | O174: 0.55 | P174: 0.6 | Q174: 0.65 | R174: 0.71 | S174: 0.78 | T174: 0.8 | U174: Judgment of IPCC Expert Group in combination with Mangino et al. (2001).
A175: Uncovered anaerobic lagoon | B175: 0.66 | C175: 0.68 | D175: 0.7 | E175: 0.71 | F175: 0.73 | G175: 0.74 | H175: 0.75 | I175: 0.76 | J175: 0.77 | K175: 0.77 | L175: 0.78 | M175: 0.78 | N175: 0.78 | O175: 0.79 | P175: 0.79 | Q175: 0.79 | R175: 0.79 | S175: 0.8 | T175: 0.8 | U175: Judgment of IPCC Expert Group in combination with Mangino et al. (2001). Uncovered lagoon MCFs vary based on several factors, including temperature, retention time, and loss of volatile solids from the system (through removal of lagoon effluent and/or solids).
A176: Pit storage below animal confinements (<1 month) | B176: 0.03 | C176: 0.03 | D176: 0.03 | E176: 0.03 | F176: 0.03 | G176: 0.03 | H176: 0.03 | I176: 0.03 | J176: 0.03 | K176: 0.03 | L176: 0.03 | M176: 0.03 | N176: 0.03 | O176: 0.03 | P176: 0.03 | Q176: 0.03 | R176: 0.03 | S176: 0.03 | T176: 0.03 | U176: Judgment of IPCC Expert Group in combination with Moller et al. (2004) and Zeeman (1994). Note that the ambient temperature, not the stable temperature is to be used for determining the climatic conditions.
A177: Pit storage below animal confinements (>1 month) | B177: 0.17 | C177: 0.19 | D177: 0.2 | E177: 0.22 | F177: 0.25 | G177: 0.27 | H177: 0.29 | I177: 0.32 | J177: 0.35 | K177: 0.39 | L177: 0.42 | M177: 0.46 | N177: 0.5 | O177: 0.55 | P177: 0.6 | Q177: 0.65 | R177: 0.71 | S177: 0.78 | T177: 0.8 | U177: Judgment of IPCC Expert Group in combination with Mangino et al. (2001). Note that the ambient temperature, not the stable temperature is to be used for determining the climatic conditions.
A178: Anaerobic digester | B178: 0 - 1 | C178: 0 - 1 | D178: 0 - 1 | E178: 0 - 1 | F178: 0 - 1 | G178: 0 - 1 | H178: 0 - 1 | I178: 0 - 1 | J178: 0 - 1 | K178: 0 - 1 | L178: 0 - 1 | M178: 0 - 1 | N178: 0 - 1 | O178: 0 - 1 | P178: 0 - 1 | Q178: 0 - 1 | R178: 0 - 1 | S178: 0 - 1 | T178: 0 - 1 | U178: Should be subdivided in different categories, considering amount of recovery of the biogas, flaring of the biogas and storage after digestion. Calculation with Formula 1.
A179: Burned for fuel | B179: 0.1 | C179: 0.1 | D179: 0.1 | E179: 0.1 | F179: 0.1 | G179: 0.1 | H179: 0.1 | I179: 0.1 | J179: 0.1 | K179: 0.1 | L179: 0.1 | M179: 0.1 | N179: 0.1 | O179: 0.1 | P179: 0.1 | Q179: 0.1 | R179: 0.1 | S179: 0.1 | T179: 0.1 | U179: Judgment of IPCC Expert Group in combination with Safley et al. (1992).
A180: Cattle and swine deep bedding (<1 month) | B180: 0.03 | C180: 0.03 | D180: 0.03 | E180: 0.03 | F180: 0.03 | G180: 0.03 | H180: 0.03 | I180: 0.03 | J180: 0.03 | K180: 0.03 | L180: 0.03 | M180: 0.03 | N180: 0.03 | O180: 0.03 | P180: 0.03 | Q180: 0.03 | R180: 0.3 | S180: 0.3 | T180: 0.3 | U180: Judgment of IPCC Expert Group in combination with Moller et al. (2004). Expect emissions to be similar, and possibly greater, than pit storage, depending on organic content and moisture content.
A181: Cattle and swine deep bedding (>1 month) | B181: 0.17 | C181: 0.19 | D181: 0.2 | E181: 0.22 | F181: 0.25 | G181: 0.27 | H181: 0.29 | I181: 0.32 | J181: 0.35 | K181: 0.39 | L181: 0.42 | M181: 0.46 | N181: 0.5 | O181: 0.55 | P181: 0.6 | Q181: 0.65 | R181: 0.71 | S181: 0.78 | T181: 0.9 | U181: Judgment of IPCC Expert Group in combination with Mangino et al. (2001).
A182: Composting - in-vessel or static pile | B182: 0.005 | C182: 0.005 | D182: 0.005 | E182: 0.005 | F182: 0.005 | G182: 0.005 | H182: 0.005 | I182: 0.005 | J182: 0.005 | K182: 0.005 | L182: 0.005 | M182: 0.005 | N182: 0.005 | O182: 0.005 | P182: 0.005 | Q182: 0.005 | R182: 0.005 | S182: 0.005 | T182: 0.005 | U182: Judgment of IPCC Expert Group and Amon et al. (1998). MCFs are less than half of solid storage. Not temperature dependant.
A183: Composting - passive or intensive windrow | B183: 0.005 | C183: 0.005 | D183: 0.005 | E183: 0.005 | F183: 0.005 | G183: 0.01 | H183: 0.01 | I183: 0.01 | J183: 0.01 | K183: 0.01 | L183: 0.01 | M183: 0.01 | N183: 0.01 | O183: 0.01 | P183: 0.01 | Q183: 0.01 | R183: 0.015 | S183: 0.015 | T183: 0.015 | U183: Judgment of IPCC Expert Group and Amon et al. (1998). MCFs are slightly less than solid storage. Less temperature dependant.
A184: Aerobic treatment | B184: 0 | C184: 0 | D184: 0 | E184: 0 | F184: 0 | G184: 0 | H184: 0 | I184: 0 | J184: 0 | K184: 0 | L184: 0 | M184: 0 | N184: 0 | O184: 0 | P184: 0 | Q184: 0 | R184: 0 | S184: 0 | T184: 0 | U184: MCFs are near zero. Aerobic treatment can result in the accumulation of sludge which may be treated in other systems. Sludge requires removal and has large VS values. It is important to identify the next management process for the sludge and estimate the emissions from that management process if significant.
A186: Table A.6. Biogas Destruction Efficiency Default Values by Destruction Device
A187: If available, the actual source test results for the measured methane destruction efficiency must be used in place of the default methane destruction efficiency. Otherwise, the Offset Project Operator or Authorized Project Designee must use the default methane destruction efficiencies provided below.
A188: Biogas Destruction Device | B188: Biogas Destruction Efficiency (BDE)
A189: Open Flare | B189: 0.96
A190: Enclosed Flare | B190: 0.995
A191: Lean-burn Internal Combustion Engine | B191: 0.936
A192: Rich-burn Internal Combustion Engine | B192: 0.995
A193: Boiler | B193: 0.98
A194: Microturbine or large gas turbine | B194: 0.995
A195: Upgrade and use of gas as CNG/LNG fuel | B195: 0.95
A196: Upgrade and injection into natural gas transmission and distribution pipeline | B196: 0.98
A197: Direct pipeline to an end-user | B197: Per corresponding destruction device
A199: Table A.9. Volatile Solids Removed Through Solids Separation (modified)
A200: Type of Solids Separation | B200: Volatile Solids Removed (fraction), MSL,nAS or MSL,S | C200: Volatile Solids Sent to Appropriate Manure Management System (fraction), MSAS,L or MSL,BCS
A201: Gravity | B201: 0.45 | C201: =1-B201 -> 0.55
A202: Mechanical:
A203: Stationary Screen | B203: 0.17 | C203: =1-B203 -> 0.83
A204: Vibrating screen | B204: 0.15 | C204: =1-B204 -> 0.85
A205: Screw press | B205: 0.25 | C205: 0.75
A206: Centrifuge | B206: 0.5 | C206: 0.5
A207: Roller drum | B207: 0.25 | C207: 0.75
A208: Belt press/screen | B208: 0.5 | C208: =1-B208 -> 0.5
A211: Manure Management Storage/Treatment Systems
A212: ~~Select Storage/Treatment~~
A213: Uncovered anaerobic lagoon
A214: Liquid/Slurry uncovered
A215: Liquid/Slurry w/natural crust cover
A216: Pasture/Range/Paddock
A217: Daily spread
A218: Solid storage
A219: Dry lot
A220: Pit storage below animal confinements (<1 month)
A221: Pit storage below animal confinements (>1 month)
A222: Cattle and Swine deep bedding (<1 month)
A223: Cattle and Swine deep bedding (>1 month)
A224: Composting - in-vessel or static pile
A225: Composting - passive or intensive windrow
A226: Aerobic treatment
A227: Burned for fuel
